{"text_format":"1","workbook":"xlsx","n_sheets":23,"sheets":["Cover Page","Facility Info","Operational Data","Operational Summary","Perf. Form 1","Energy Form 1","Permit Compliance","Improvements","Public Liaison","CO2 N2O","Residues ","Water","Air (periodic)","Air (CEMS)","HCl","SO2","NOx","TOC","Particulates","CO 0.5 hourly","CO 95% 10 min","NH3","Template changes log"],"not_rendered":{"charts":8,"images":1,"macros":1,"external_links":0,"defined_names":23,"comments":0,"pivot_tables":0},"unopened":[],"bounds":{"document_bytes":16777216,"sheet_cells":100000,"rows_first":2000,"rows_last":500,"rows_between":2000,"halvings":0,"cell_chars":16384,"cell_head_chars":4096},"cells_cut":0,"cells_raw":0,"read":"whole","date_system":"1900"}

{"sheet":"Cover Page","index":0,"n_rows":53,"n_cols":11,"rows_kept":53,"cut":false,"hidden":false,"merged":[[13,10,18,12],[34,1,34,8],[0,3,5,6],[7,1,23,8],[28,1,28,8],[30,1,30,8],[32,1,32,8],[48,2,48,3],[48,6,48,8],[52,2,52,3],[36,1,36,8],[40,2,40,8],[42,2,42,4],[44,2,44,4],[46,2,46,3],[46,6,46,8]]}
[null,null,null,"Add company logo"]
[null,null,null,null,null,null,null,null,null,null,"Version 25.1b (for co-incinerators) - 27/11/25"]
[]
[null,null,null,null,null,null,null,null,null,null,"Note that there is another version of this template available for incinerators"]
[]
[]
[]
[null,"Add photo"]
[]
[]
[]
[]
[null,null,null,null,null,null,null,null,null,null,"Notes:"]
[null,null,null,null,null,null,null,null,null,null,"This template may require adjustments by individual operators to meet specific reporting requirements as defined in the site Permit(s)"]
[]
[]
[]
[]
[]
[]
[]
[]
[]
[]
[]
[]
[]
[]
[null,"Annual Performance Report 2025"]
[]
[null,"Permit EPR/XP3030XX"]
[]
[null,"Enviropower Ltd"]
[]
[null,"other name of facility (if applicable)"]
[]
[null,"Enviropower Ltd"]
[]
[null,"Year:",2025]
[]
[null,"Address:","Unit 7 Marlborough Business Centre, 24 Marlborough Road, Lancing Business Park, Lancing, West Sussex, BN15 8TP"]
[]
[null,"Tel: ","01903 768239"]
[]
[null,"Email: ","joe@enviropowerltd.co.uk"]
[]
[null,"Prepared by:","Joe Timms",null,null,"Position:","Operations Director"]
[]
[null,"Approved by:","Joe Timms",null,null,"Position:","Operations Director"]
[]
[null,"Version:",1]
[]
[null,"Issue Date:"]

{"sheet":"Facility Info","index":1,"n_rows":22,"n_cols":11,"rows_kept":22,"cut":false,"hidden":false,"merged":[[4,0,17,8],[4,10,13,13],[21,10,30,13],[21,0,83,8]]}
[{"$f":"+'Cover Page'!$B$29","v":"Annual Performance Report 2025"},null,null,null,{"$f":"+'Cover Page'!$B$33","v":"Enviropower Ltd"}]
[]
["Plant Description and Design",null,null,null,null,null,null,null,null,null,"Notes:"]
[]
["The main purpose of the activity at the installation is to burn residual non-hazardous construction and demolition waste as fuel for the production of steam. The steam is used to drive a steam turbine to produce electricity for export to the national grid. The installation covers the entire combustion plant including all combustion lines, waste reception, storage, waste-fuel and air supply systems, boiler, facilities for the treatment of exhaust gases, on-site facilities for handling and storage of residues and waste water, stack, devices and systems for controlling combustion operations, recording and monitoring conditions.\n\nThe plant has a  design capacity of 9.5te/hr, which equates to approximately 75,000 tonnes per year at 7884 hour operation. The are two identical combustion lines. The heat produced is used to generate electricity for export to the national grid. The process generates approximately 4MW of electricity for export to the national grid. Facilities are maintained to allow steam or hot water pass-outs such that opportunities for use of heat may be capitalised upon should they become practicable.",null,null,null,null,null,null,null,null,null,"Include summary of plant design, design capacity, no. of combustion lines, electrical and heat capacity and any other general information that describes the facility, its location and purpose "]
[]
[]
[]
[]
[]
[]
[]
[]
[]
[]
[]
[]
[]
[]
["Summary of Operational Processes and Procedures"]
[]
["Raw Materials:\nWaste is delivered to the plant via the waste recycling facility adjacent to the installation where it’s deposited into the inlet hopper of a Untha mobile-e shredder. The waste is then reduced to a maximum particle size of approximately 100mm. Ferrous and non-ferrous metals are then removed by a magnet and eddy current separator before the shredded waste is transferred to the fuel storage area from where it is fed into one of two reciprocating grate stoker fired combustion units and then incinerated. The furnaces are fitted with secondary chambers where the resulting flue gas is retained for >2seconds at >850 oC to ensure complete combustion.\nUrea is injected into the hot flue gas in the secondary chamber to reduce oxides of nitrogen (NOx) to nitrogen and water. The flue gas then passes through a heat exchanger where steam is raised to drive a steam turbine. The flue gas is then treated with sodium bicarbonate to neutralise acid gases and activated carbon to remove heavy metals, volatile organic compounds (VOCs) and dioxins and furans.\nRaw materials used in the process, apart from those referred to above, include small quantities of water treatment chemicals, oils, lubricants and biocides. These are all stored in bunded enclosures in the main process building.\nCombustion Process:\nThere are two waste combustion streams in parallel. Each stream is served by a Talbott Bio-10000 moving grate combustor. At the end of the grate the solid residues fall into a water quench chamber and are then conveyed to storage bay. Primary combustion air is extracted from within the building and fed in below the waste through the grate bars and above the waste mass to promote good combustion.\nSecondary combustion air is injected into a cylindrical secondary chamber where it is mixed with the hot flue gas and the temperature raised to >850 oC for more than 2 seconds. Urea is injected into the outlet of the combustion chamber to react with the oxides of nitrogen, chemically reducing them to nitrogen and water.\nAuxiliary natural gas burners are fitted to assist in maintaining gas temperatures above 850oC for 2 seconds with a minimum of 6% oxygen content in the combustor. The oxygen concentration and temperature are carefully controlled to minimise dioxin emissions.\nEnergy Recovery:\nThe steam generating boilers are located at the exit of the flue gas from the secondary chamber. Hot gases pass through a series of heat exchangers and superheaters and finally through an economiser. The steam is fed to a steam turbine which generates electricity. Water for steam generation is taken from the town’s water main and is treated prior to use in the boilers. Steam is condensed in an air cooled vacuum condenser and then recycled to the boiler. All process waste waters are discharged directly to sewer in accordance with a trade effluent consent.\nGas Cleaning:\nFlue gases pass from the boiler to the gas cleaning equipment. The design of the boilers is such that the flue gas temperature is quickly reduced through the critical temperature range thus minimising dioxin reformation. The gas enters a reaction chamber where sodium bicarbonate and activated carbon are injected to neutralise acid gases and absorb (primarily) dioxins, volatile organic compounds (VOCs), PAHs and mercury. The sodium bicarbonate injection rate is automatically controlled by upstream management of hydrogen chloride (HCl) and sulphur dioxide (SO2), the HCl and SO2 concentrations being continually monitored by CEMS to optimise sodium bicarbonate usage.\nNitrogen oxides (NOx) abatement is achieved by the use of selective non-catalytic reduction (SNCR) and flue gas recirculation. The SNCR is based on the injection of urea into the furnace chambers before the sodium bicarbonate and carbon injection and before the gas passes to the bag filters.\nBag filters remove the fine ash plus excess and spent sorbent as the gases pass across the bag fabric. The build up of the latter two enhances the performance of the system. Reverse pulses of compressed air are used to remove the accumulated particulate (“APC residues”) from the bags. The APC residues fall into a collection hopper and from there into 1m3 capacity ‘tote’ bags which are sealed when full and then stored within the main building prior to transport to a suitably licensed hazardous waste disposal facility.\nThe cleaned gas then discharges to atmosphere via two 16-metre stacks.\nAncillary Operations:\nDe-mineralised water is required to compensate for boiler blow down losses. This is treated prior to use with chemicals such as sodium sulphate and sodium hydroxide to reduce hardness. These activities all take place within bunded areas within the main process building.\nAsh Handling:\nBottom ash is sent off-site for aggregate recycling. APC residues are sent for disposal off site by licensed contractors subject to waste licensing legislation. Ferrous metals are sent for recovery off site by licensed contractors subject to waste permitting legislation. All other solid waste residues arising from the operation of the process will be removed from site, in enclosed containers, for disposal by suitable contractors.\nLiquid Effluent and Site Drainage:\nThe plant uses approximately 20000 tonnes per year of potable water. This is largely made up of boiler blow down water. All other process waters, such as site wash down water and bottom ash quench are recycled within the process via a waste water tank and only where necessary discharged directly to sewer. There is no discharge of process liquids to controlled waters. Uncontaminated surface water is discharged via an interceptor to local surface water drains.\nEmissions Monitoring:\nEmissions from the stack are continuously monitored. In addition periodic sampling and measurement will be carried out for metals The appearance of the key release points of the main plant stack are monitored by CCTV. Date coded video records are available to supplement process records should they be required.\nThe status log of a permit sets out the permitting history, including any changes to the permit reference number.",null,null,null,null,null,null,null,null,null,"Include summary of key processes and procedures such as (but not limited to); waste reception, control rooms, grate, bed and boiler, energy & heat  generation, cooling systems, residue management, emission controls, health and safety systems, maintenance"]

{"sheet":"Operational Data","index":2,"n_rows":65,"n_cols":10,"rows_kept":65,"cut":false,"hidden":false,"merged":[[4,9,27,9],[30,9,34,9],[34,1,39,1],[53,0,57,0],[3,1,3,2],[7,2,7,3],[10,1,22,1],[26,1,28,1]]}
["Annual Performance Report 2025",null,null,null,"Name of Facility as per Permit",null,null,"Enviropower Ltd"]
[]
["Operational Data"]
["Plant Size:",75000,null,"tonnes pa",null,null,null,null,null,"Notes:"]
["Nominal net thermal input:",20,"MWth",null,null,null,null,null,null,"* Export capacity = nominal generation capacity at the generator terminals minus nominal parasitic load.\n\n** CHP and district heating plants only - put N/A if no heat export.\n\n***  Combusted tonnage = tonnes delivered in period + (tonnes in bunker at start of period – tonnes in bunker at end of period), or equivalent calculation depending on plant type\n\n**** Availability Definition: The availability of a line is to be calculated by the number of hours the line reported Continuously Monitored emission levels to the Regulator through the calendar year divided by the total number of hours in that year. \n\nThe overall plant availability is calculated as the mean of all lines in the plant. For clarity this includes periods of abnormal operation.  \n\nRationale: The primary function of an Energy from Waste facility is the disposal of waste. It follows therefore that the availability of a plant is determined by the period of time a facility spends undertaking this activity.\n\n*****NCV of waste: This should be completed for all plants which have a boiler. Calculate using total thermal power produced by boiler/boiler efficiency, or other suitable calculation. \n"]
["Nominal electrical export capacity*:",5,"MWe"]
["Nominal heat export capacity**:","N/A","MWth"]
["No. of combustion lines:",2,"No. of steam turbines:",null,1]
[]
["Waste types received","Unit","Q1","Q2","Q3","Q4","Year Total","%"]
["Household / Local Authority","tonnes","-","-","-","-",{"$f":"SUM(C11:F11)","v":0},{"$f":"IF(G11>0,G11/$G$21,\"-\")","v":"-"}]
["Commercial & Industrial ",null,"-","-","-","-",{"$f":"SUM(C12:F12)","v":0},"-"]
["Hazardous ",null,"-","-","-","-",0,"-"]
["Clinical",null,"-","-","-","-",0,"-"]
["Waste wood (biomass) ",null,5204,8910,11439,13165,38718,0.94815721807273168]
["Refuse Derived Fuel (incl. SRF) - H'hold/LA",null,"-","-","-","-",0,"-"]
["Refuse Derived Fuel (incl. SRF) - C&I",null,"-","-","-","-",0,"-"]
["Trommel Fines & Sawdust",null,418,601,486,612,2117,5.1842781927268274E-2]
["Other [Please specify]",null,"-","-","-","-",0,"-"]
["Other [Please specify]",null,"-","-","-","-",0,"-"]
["Total waste received",null,{"$f":"SUM(C11:C20)","v":5622},{"$f":"SUM(D11:D20)","v":9511},{"$f":"SUM(E11:E20)","v":11925},{"$f":"SUM(F11:F20)","v":13777},40835]
["Rejected Waste ",null,"-","-","-","-",0,{"$f":"IF(G22>0,G22/$G$21,\"-\")","v":"-"}]
["Unprocessed waste transferred out",null,"-","-","-","-",0,{"$f":"IF(G23>0,G23/$G$21,\"-\")","v":"-"}]
["Total waste combusted ***",null,5893.8,9169.2999999999993,11935.4,14116,{"$f":"SUM(C24:F24)","v":41114.5}]
[]
["Energy Usage / Export","Unit","Q1","Q2","Q3","Q4","Year Total","KWh/te"]
["Power generated at generator terminals","MWh",2156.77,5022.83,5724.37,6206.06,{"$f":"SUM(C27:F27)","v":19110.030000000002},{"$f":"IF(G27>0,G27*1000/$G$24,\"-\")","v":464.80025295212158}]
["Power exported to grid and other external user(s)",null,1632.1,3795.5,4315.8999999999996,4646.8,{"$f":"SUM(C28:F28)","v":14390.3},{"$f":"IF(G28>0,G28*1000/$G$24,\"-\")","v":350.0054725218597}]
["Power imported",null,301.5,54.5,324.8,48.9,729.69999999999993,{"$f":"IF(G29>0,G29*1000/$G$24,\"-\")","v":17.747996448941368}]
["Indicative parasitic load","%",{"$f":"IF(C27>0,(C27-C28)/C27,\"-\")","v":0.24326655137079989},{"$f":"IF(D27>0,(D27-D28)/D27,\"-\")","v":0.2443502965459711},0.24604803672718575,0.25124797375468494,{"$f":"IF(G27>0,1-G28/(G27+G29),\"-\")","v":0.27467258879027101}]
["Thermal Energy Exported **",null,"-","-","-","-",{"$f":"SUM(C31:F31)","v":0},{"$f":"IF(G31>0,G31*1000/$G$24,\"-\")","v":"-"},null,"Password for protected cells\nA password has been set to prevent accidental  editing of cells with formulae. \nIf you still need to make an edit for some reason then the password = 1234"]
["R1 value (if applicable)","R1","-","-","-","-"]
[]
["Waste Disposal & Recovery","Unit","Q1","Q2","Q3","Q4","Year Total","% inputs"]
["APC Residues - produced","tonnes",292,650,717,618,{"$f":"SUM(C35:F35)","v":2277},{"$f":"IF(G35>0,G35/$G$24,\"-\")","v":5.5381921220007541E-2}]
["IBA - produced",null,555,1403,1024,1229,4211,{"$f":"IF(G36>0,G36/$G$24,\"-\")","v":0.1024212868939182}]
["Metals recycling",null,0,0,0,0,{"$f":"SUM(C37:F37)","v":0},"-"]
["Other",null,0,0,0,0,0,"-"]
["Other",null,0,0,0,0,0,"-"]
["Other",null,0,0,0,0,0,"-"]
[]
["Raw Material Usage","Unit","Q1","Q2","Q3","Q4","Year Total","kg or Ltr./te"]
["Mains Water","ltrs",1938000,2750000,3518000,3641000,{"$f":"SUM(C43:F43)","v":11847000},{"$f":"IF(G43>0,G43/$G$24,\"-\")","v":288.14651765192326}]
["Other Water","ltrs","-","-","-","-",0,{"$f":"IF(G44>0,G44/$G$24,\"-\")","v":"-"}]
["Ammonia","kgs","-","-","-","-",0,"-"]
["Urea","kgs",20000,20000,40000,40000,120000,2.9186783251650876]
["Activated Carbon","kgs",0,10000,10000,10000,30000,0.72966958129127191]
["Sodium Bicarbonate","kgs",206000,452000,492000,553000,1703000,41.420909897967867]
["Fuel oil","ltrs","-","-","-","-",0,"-"]
["Gas","cuf",1088151,734368,916168,111806,2850493,69.330601126123383]
["Other",null,"-","-","-","-",0,"-"]
[]
["Summary ","Line/Unit","Q1","Q2","Q3","Q4","Year Total",null,"Hrs in year "]
["Availability of waste combustion by line, hrs ****",1,503.31,565.51,1275.83,2143.5,{"$f":"SUM(C54:F54)","v":4488.1499999999996},{"$f":"+G54/$I$54","v":0.5123458904109589},8760,"Change this figure to 8784 in a leap year"]
[null,2,670.48,1464.05,1603.25,2139.83,5877.61,{"$f":"+G55/$I$54","v":0.67096004566210043}]
[null,3,"-","-","-","-",0,0]
[null,4,"-","-","-","-",0,0]
[null,5,"-","-","-","-",0,0]
["Hours of turbine operations, hrs",1,792.16,2004.88,1614.04,2161.81,6572.8899999999994,0.75032990867579907]
["Hours of turbine operations, hrs",2,"-","-","-","-",0,0]
["Hours of heat / steam export**","hours","-","-","-","-",0,{"$f":"IF(B61>0,G60/I54,\"n/a\")","v":0}]
["Net calorific value of waste*****","MJ/kg",15.551,16.719000000000001,16.352,16.093,65]
["Abnormal operation events","qty.",0,4,2,0,6,{"$f":"IF(G63>0,\"yes\",\"no\")","v":"yes"}]
["Abnormal operation duration","hours",0,6,1,null,7,{"$f":"+(G64)/I54","v":7.9908675799086762E-4}]
["Permit Breaches","qty.",0,1,0,0,1,{"$f":"IF(G65>0,\"yes\",\"no\")","v":"yes"}]

{"sheet":"Operational Summary","index":3,"n_rows":50,"n_cols":11,"rows_kept":50,"cut":false,"hidden":false,"merged":[[60,2,60,8],[61,2,61,8],[62,2,62,8],[63,2,63,8],[64,2,64,8],[55,2,55,8],[56,2,56,8],[57,2,57,8],[58,2,58,8],[59,2,59,8],[50,2,50,8],[51,2,51,8],[52,2,52,8],[53,2,53,8],[54,2,54,8],[45,2,45,8],[46,2,46,8],[47,2,47,8],[48,2,48,8],[49,2,49,8],[4,0,26,8],[4,10,13,13],[28,1,28,8],[29,2,29,8],[29,10,42,13],[30,2,30,8],[31,2,31,8],[32,2,32,8],[33,2,33,8],[34,2,34,8],[35,2,35,8],[36,2,36,8],[37,2,37,8],[43,2,43,8],[44,2,44,8],[38,2,38,8],[39,2,39,8],[40,2,40,8],[41,2,41,8],[42,2,42,8]]}
["Annual Performance Report 2025",null,null,null,"Name of Facility as per Permit",null,null,null,"Enviropower Ltd"]
[]
["Summary of Plant Operations and Maintenance during the reporting year",null,null,null,null,null,null,null,null,null,"Notes:"]
[]
["We operated at reduced capacity for the whole year due to a turbine issue.",null,null,null,null,null,null,null,null,null,"Include summary of key operational and/or maintenance activity undertaken in the year, such as any major component upgrades and/or replacements "]
[]
[]
[]
[]
[]
[]
[]
[]
[]
[]
[]
[]
[]
[]
[]
[]
[]
[]
[]
[]
[]
[]
[]
[2025,"Plant shut-downs"]
["Start date","End date","Reason for shut-down",null,null,null,null,null,null,null,"Provide a very brief reason for plant shut-down e.g. \"Shut-down prior to major outage\"; \"Emergency shut-down due to boiler tube leak\". All emergency shut-downs must be listed (irrespective of whether or not they were required to be reported to the EA). \n\nThere is no need to include periods of hot-standby here (e.g. to clear feed chute hopper blockages).\n\nFor clinical waste incinerators which require regular shut-downs for boiler cleaning, there is no need to record these here (only those prior to major outages, and emergency shut-downs). "]
["2025-01-01","2025-01-08","Line A down for general maintenance."]
["2025-01-01","2025-01-09","Line B down for general maintenance."]
["2025-01-13","2025-02-20","Line A down for general maintenance."]
["2025-01-13","2025-02-19","Line B down for general maintenance."]
["2025-02-23","2025-03-17","Line A down for general maintenance."]
["2025-02-23","2025-02-25","Line B down for general maintenance."]
["2025-03-21","2025-03-31","Line B down for general maintenance."]
["2025-04-01","2025-04-24","Line B down for general maintenance."]
["2025-04-25","2025-06-30","Line A down for general maintenance."]
["2025-05-27","2025-05-31","Line B down for turbine maintenance."]
["2025-06-03","2025-06-03","Line B down due to running out of Sorbacal (Lime)"]
["2025-06-07","2025-06-07","Line B down as additive silo emptied to swap product from Sorbacal (Lime) to Sodium Bicarbonate."]
["2025-06-25","2025-06-25","Line B down for superheater reapair."]
["2025-07-01","2025-07-18","Line A down for general maintenance."]
["2025-07-22","2025-07-26","Line A down for general maintenance."]
["2025-07-12","2025-07-31","Line B down for general maintenance."]
["2025-09-07","2025-09-22","Line A down for general maintenance."]
["2025-09-07","2025-09-08","Line B down for turbine maintenance."]
["2025-09-14","2025-09-15","Line B down due to compressed air system failure."]
["2025-09-23","2025-09-25","Line B down for general maintenance."]

{"sheet":"Perf. Form 1","index":4,"n_rows":54,"n_cols":10,"rows_kept":54,"cut":false,"hidden":false,"merged":[[9,0,9,9],[10,0,10,1],[10,2,10,3],[10,4,10,5],[10,6,10,7],[10,8,10,9],[2,0,2,4],[2,6,2,8],[3,1,3,4],[5,3,5,4],[5,6,5,7],[8,0,8,1],[8,2,8,3],[8,4,8,5],[8,6,8,7],[8,8,8,9],[11,0,11,1],[11,2,11,3],[11,4,11,5],[11,6,11,7],[11,8,11,9],[12,0,12,1],[12,2,12,3],[12,4,12,5],[12,6,12,7],[12,8,12,9],[15,0,15,1],[15,2,15,3],[15,4,15,5],[15,6,15,7],[15,8,15,9],[16,0,16,9],[13,0,13,1],[13,2,13,3],[13,4,13,5],[13,6,13,7],[13,8,13,9],[14,0,14,3],[14,4,14,5],[14,6,14,7],[14,8,14,9],[17,0,17,1],[17,2,17,3],[17,4,17,5],[17,6,17,7],[17,8,17,9],[18,0,18,1],[18,2,18,3],[18,4,18,5],[18,6,18,7],[18,8,18,9],[19,0,19,1],[19,2,19,3],[19,4,19,5],[19,6,19,7],[19,8,19,9],[20,0,20,1],[20,2,20,3],[20,4,20,5],[20,6,20,7],[20,8,20,9],[21,0,21,1],[21,2,21,3],[21,4,21,5],[21,6,21,7],[21,8,21,9],[22,0,22,3],[22,4,22,5],[22,6,22,7],[22,8,22,9],[31,0,31,3],[31,7,31,8],[32,0,32,3],[32,4,32,5],[32,7,32,8],[33,0,33,3],[33,4,33,5],[33,7,33,8],[23,0,23,3],[23,4,23,5],[23,6,23,7],[23,8,23,9],[25,0,25,9],[26,0,28,9],[36,0,36,3],[36,4,36,5],[36,7,36,8],[37,0,37,3],[37,4,37,5],[37,7,37,8],[34,0,34,3],[34,4,34,5],[34,7,34,8],[35,0,35,3],[35,4,35,5],[35,7,35,8],[47,0,47,1],[49,0,49,9],[50,0,51,9],[38,0,38,9],[39,0,40,9],[43,0,43,1],[43,2,43,9],[45,0,45,1],[46,0,46,1]]}
[{"$f":"+'Cover Page'!C39","v":2025}," Annual Reporting Performance Form 1"]
[]
[{"$f":"+'Cover Page'!B31","v":"Permit EPR/XP3030XX"},null,null,null,null,"Operator: ",{"$f":"+'Cover Page'!B37","v":"Enviropower Ltd"}]
["Facility:",{"$f":"+'Cover Page'!B33:I33","v":"Enviropower Ltd"},null,null,null,"Form:","Performance 1"]
[]
["Reporting  Period from: ",null,null,"2025-01-01",null,"to:","2025-12-31"]
[]
[{"$f":"+A1","v":2025},"Annual Reporting of Waste Disposal and Recovery"]
["Waste Description",null,"Disposal Route(s)",null,"Disposal Tonnes",null,"Recovery Tonnes",null,"% / tonne of waste incinerated"]
["1) Hazardous Wastes"]
["APC Residues",null,1,null,2276.9699999999998,null,0,null,{"$f":"IF((E11+G11)>0,(E11+G11)/'Operational Data'!$G$21, \"-\")","v":5.5760254683482301E-2}]
["IBA",null,1,null,327.36,null,0,null,{"$f":"IF((E12+G12)>0,(E12+G12)/'Operational Data'!$G$21, \"-\")","v":8.0166523815354482E-3}]
[null,null,null,null,null,null,null,null,{"$f":"IF((E13+G13)>0,(E13+G13)/'Operational Data'!$G$21, \"-\")","v":"-"}]
[null,null,null,null,null,null,null,null,{"$f":"IF((E14+G14)>0,(E14+G14)/'Operational Data'!$G$21, \"-\")","v":"-"}]
["Total Hazardous Waste",null,null,null,{"$f":"SUM(E11:F14)","v":2604.33},null,{"$f":"SUM(G11:H14)","v":0},null,{"$f":"IF((E15+G15)>0,(E15+G15)/'Operational Data'!$G$21, \"-\")","v":6.3776907065017749E-2}]
[]
["2) Non-Hazardous Wastes"]
["IBA",null,1,null,0,null,3884,null,{"$f":"IF((E18+G18)>0,(E18+G18)/'Operational Data'!$G$21, \"-\")","v":9.5114485123056203E-2}]
["Ferrous Metal",null,1,null,0,null,0,null,{"$f":"IF((E19+G19)>0,(E19+G19)/'Operational Data'!$G$21, \"-\")","v":"-"}]
["Process Water",null,0,null,0,null,0,null,{"$f":"IF((E20+G20)>0,(E20+G20)/'Operational Data'!$G$21, \"-\")","v":"-"}]
[null,null,null,null,null,null,null,null,{"$f":"IF((E21+G21)>0,(E21+G21)/'Operational Data'!$G$21, \"-\")","v":"-"}]
[null,null,null,null,null,null,null,null,{"$f":"IF((E22+G22)>0,(E22+G22)/'Operational Data'!$G$21, \"-\")","v":"-"}]
["Total Non-Hazardous Waste",null,null,null,{"$f":"SUM(E18:F22)","v":0},null,{"$f":"SUM(G18:H22)","v":3884},null,{"$f":"IF((E23+G23)>0,(E23+G23)/'Operational Data'!$G$21, \"-\")","v":9.5114485123056203E-2}]
["TOTAL WASTE",null,null,null,{"$f":"+E23+E15","v":2604.33},null,{"$f":"+G23+G15","v":3884},null,{"$f":"IF((E24+G24)>0,(E24+G24)/'Operational Data'!$G$21, \"-\")","v":0.15889139218807397}]
[]
["Operator’s comments :"]
[]
[]
[]
[]
[{"$f":"+A1","v":2025},"Annual Reporting of Water and Other Raw Material Usage"]
["Raw Material",null,null,null,"Usage",null,"Unit","Specific Usage",null,"Unit"]
["Mains Water",null,null,null,{"$f":"+'Operational Data'!G43/1000","v":11847},null,"m3",{"$f":"IF(E33>0,E33/'Operational Data'!$G$21,\"-\")","v":0.29011877066242192},null,"m3/te"]
["Total Water",null,null,null,{"$f":"+'Operational Data'!G44+'Operational Data'!G43/1000","v":11847},null,"m3",{"$f":"IF(E34>0,E34/'Operational Data'!$G$21,\"-\")","v":0.29011877066242192},null,"m3/te"]
["Urea / Ammonia",null,null,null,{"$f":"+'Operational Data'!G46","v":120000},null,"kg",{"$f":"IF(E35>0,E35/'Operational Data'!$G$21,\"-\")","v":2.9386555650789763},null,"kg/te"]
["Activated Carbon",null,null,null,{"$f":"+'Operational Data'!G47","v":30000},null,"kg",{"$f":"IF(E36>0,E36/'Operational Data'!$G$21,\"-\")","v":0.73466389126974407},null,"kg/te"]
["Lime / hydrated lime / Sodium Bicarb.",null,null,null,{"$f":"+'Operational Data'!G48","v":1703000},null,"kg",{"$f":"IF(E37>0,E37/'Operational Data'!$G$21,\"-\")","v":41.704420227745807},null,"kg/te"]
[]
["Operator’s comments :"]
[]
[]
[]
[{"$f":"+A31","v":2025},"Annual Reporting of other performance indicators "]
["Parameter",null,"Results by Line"]
[null,null,"A1","A2","A3","A4","A5",null,"Turbine 1","Turbine 2"]
["Operating hours for the year, hours",null,4488,5878,0,0,0,0,6573,0]
["Number of periods of abnormal operation, qty.",null,2,4,0,0,0,0,0,0]
["Cumulative hours of abnormal operation for this year, hours",null,1,6,0,0,0,0,0,0]
[]
["Operator’s comments :"]
[]
[]
[]
["Signed: ","J Timms",null,null,null,null,"Date:","2026-02-06"]

{"sheet":"Energy Form 1","index":5,"n_rows":29,"n_cols":8,"rows_kept":29,"cut":false,"hidden":false,"merged":[[2,6,2,8],[4,1,4,4],[6,3,6,4],[6,6,6,7],[8,0,8,2],[8,3,8,4],[8,6,8,8],[9,0,9,2],[9,3,9,4],[9,6,9,8],[10,0,10,2],[10,3,10,4],[10,6,10,8],[11,0,11,2],[11,3,11,4],[11,6,11,8],[12,0,12,2],[12,3,12,4],[12,6,12,8],[13,0,13,2],[13,3,13,4],[13,6,13,8],[14,0,14,2],[14,3,14,4],[14,6,14,8],[15,0,15,2],[15,3,15,4],[15,6,15,8],[17,0,17,8],[18,0,24,8]]}
[{"$f":"+'Cover Page'!C39","v":2025}," Annual Reporting of Energy Usage/Export"]
[]
[{"$f":"+'Cover Page'!B31","v":"Permit EPR/XP3030XX"},null,null,null,null,"Operator: ",{"$f":"+'Cover Page'!B37","v":"Enviropower Ltd"}]
[]
["Facility:",{"$f":"+'Cover Page'!B33:I33","v":"Enviropower Ltd"},null,null,null,"Form:","Energy 1"]
[]
["Reporting  Period from: ",null,null,{"$f":"+'Perf. Form 1'!D6:E6","v":"2025-01-01"},null,"to:",{"$f":"+'Perf. Form 1'!G6:H6","v":"2025-12-31"}]
[]
["Energy Source",null,null,"Energy Usage",null,"Unit","Specific Usage (KWh/tonne incinerated"]
["Electricity Produced",null,null,{"$f":"+'Operational Data'!G27","v":19110.030000000002},null,"MWh",{"$f":"+'Operational Data'!H27","v":464.80025295212158}]
["Electricity Imported   ",null,null,{"$f":"+'Operational Data'!G29","v":729.69999999999993},null,"MWh",{"$f":"+'Operational Data'!H29","v":17.747996448941368}]
["Electricity Exported",null,null,{"$f":"+'Operational Data'!G28","v":14390.3},null,"MWh",{"$f":"+'Operational Data'!H28","v":350.0054725218597}]
["Gas Oil",null,null,null,null,"tonnes"]
["Steam/hot water exported",null,null,{"$f":"+'Operational Data'!G31","v":0},null,"GWh",{"$f":"+'Operational Data'!H31","v":"-"}]
[]
[]
[]
["Operator’s comments :"]
[]
[]
[]
[]
[]
[]
[]
[]
[]
[]
["Signed: ","J Timms",null,null,null,null,"Date:","2026-02-06"]

{"sheet":"Permit Compliance","index":6,"n_rows":30,"n_cols":12,"rows_kept":30,"cut":false,"hidden":false,"merged":[[35,4,35,8],[33,1,33,3],[33,4,33,6],[33,7,33,9],[34,1,34,3],[34,4,34,6],[34,7,34,9],[8,11,20,11],[19,1,19,2],[19,3,19,5],[19,7,19,8],[21,1,21,2],[21,3,21,5],[9,0,9,1],[9,2,9,4],[9,5,9,8],[10,0,10,1],[10,2,10,4],[10,5,10,8],[11,0,11,1],[11,2,11,4],[11,5,11,8],[12,0,12,1],[12,2,12,4],[12,5,12,8],[13,0,13,1],[13,2,13,4],[13,5,13,8],[7,0,7,1],[7,2,7,8],[8,0,8,1],[8,2,8,4],[8,5,8,8],[14,0,14,1],[14,2,14,4],[14,5,14,8],[15,0,15,1],[16,2,16,4],[16,5,16,8],[15,2,15,4],[15,5,15,8],[16,0,16,1],[32,1,32,3],[32,4,32,6],[32,7,32,9],[29,1,29,3],[29,4,29,6],[29,7,29,9],[30,1,30,3],[30,4,30,6],[30,7,30,9],[18,0,18,10],[31,1,31,3],[31,4,31,6],[31,7,31,9],[22,1,22,2],[22,3,22,5],[26,0,26,8],[28,0,28,10],[23,1,23,2],[23,3,23,5],[24,1,24,2],[24,3,24,5],[25,1,25,2],[25,3,25,5]]}
[{"$f":"+'Cover Page'!$B$29","v":"Annual Performance Report 2025"},null,null,null,"Name of Facility as per Permit",null,null,null,"Enviropower Ltd"]
[]
["Summary of Permit Compliance"]
[]
["Compliance with permit limits for continuously monitored pollutants"]
[]
["The plant met its emission limits as shown in the table below:"]
["Substance",null,"Percentage time compliant during operationNote 1",null,null,null,null,null,null,null,null,"Notes:"]
[null,null,"Half-hourly limit",null,null,"Daily limit",null,null,null,null,null,"Note 1: Please report to 2 decimal places, i.e. xx.xx%\n\nNote 2: Please enter into this table any permit non-compliances that the EA has given a CCS score for. Please also enter any other non-compliances which you have notified to the EA (e.g. ELV exceedances) but which have not yet been assessed by the EA. There is no need to enter any notifications which were subsequently assessed by the EA not to be permit breaches.  \n\nNote 3: Please enter information here (rather than just referencing the notifications that were sent to the EA) including where relevant the incineration line reference, pollutant and value of the measured result for any ELV exceedances.   \n\n"]
["Particulates",null,1,null,null,1]
["Oxides of nitrogen",null,1,null,null,1]
["Sulphur dioxide",null,0.99990000000000001,null,null,1]
["Carbon monoxide",null,"100% 95% of 10-min averages",null,null,1]
["Total organic carbon",null,1,null,null,1]
["Hydrogen chloride",null,1,null,null,1]
["Hydrogen fluoride",null,"xx.xx %",null,null,"xx.xx %"]
[null,null,{"$f":"AVERAGE(C10:E16)","v":0.99998000000000009},null,null,{"$f":"AVERAGE(F10:I16)","v":1}]
[]
["Summary of non-compliances under the permit Note 2"]
["Date","Summary of non-compliance Note 3",null,"Reason ",null,null,"Measures taken to prevent reoccurrence","CCS score if applicable*"]
[null,null,null,null,null,null,null,"Impact","Root cause"]
["2025-05-30","Line B - SO2 Half hour = 246.0mg/nm3",null,"Filtration system not pre-coated during start-up.",null,null,"Procedure reviewed and step for pre-coating filter during start-up added and then briefed out to all staff."]
[]
[]
[]
[]
["*If the Environment Agency (EA) has given a Compliance Classification Scheme (CCS) score due to a permit non-compliance it should be entered here (CCS4 = No impact; CCS3 = Minor impact; CCS2 = Significant impact; CCS1 = Major impact). If the EA has not yet assessed a non-compliance which you have notified to them, these columns should be left blank. "]
[]
["Summary of any complaints received and actions to taken to resolve them."]
["Date","Summary of complaint [including Line/Reference]",null,null,"Reason (including whether substantiated by the operator or the EA)",null,null,"Measures taken to prevent reoccurrence"]

{"sheet":"Improvements","index":7,"n_rows":39,"n_cols":5,"rows_kept":39,"cut":false,"hidden":false,"merged":[[37,0,37,8],[38,0,47,8],[4,0,4,8],[5,0,13,8],[15,0,15,8],[16,0,24,8],[26,0,26,8],[27,0,35,8]]}
[{"$f":"+'Cover Page'!$B$29","v":"Annual Performance Report 2025"},null,null,null,{"$f":"+'Cover Page'!$B$33","v":"Enviropower Ltd"}]
[]
["Summary of Plant Improvements"]
[]
["Summary of any efficiency improvements that have been completed within the year."]
["None."]
[]
[]
[]
[]
[]
[]
[]
[]
[]
["Summary of any permit improvement conditions that have been completed within the year and the resulting environmental benefits."]
["None."]
[]
[]
[]
[]
[]
[]
[]
[]
[]
["Summary of any changes to the plant or operating techniques which required a variation to the permit and a summary of the resulting environmental impact."]
["None."]
[]
[]
[]
[]
[]
[]
[]
[]
[]
["Summary of any other improvements made to the plant or planned to be made and a summary of the resulting environmental benefits."]
["Line B - We are looking to install an APCr recirculation system. The benefit of this is that we should be able to recirculate APCr back into the system and use less sodium bicarbonate."]

{"sheet":"Public Liaison","index":8,"n_rows":29,"n_cols":5,"rows_kept":29,"cut":false,"hidden":false,"merged":[[16,0,16,1],[16,2,16,8],[5,0,5,1],[5,2,5,8],[6,0,7,1],[6,2,7,8],[8,0,9,1],[8,2,9,8],[10,0,11,1],[10,2,11,8],[12,0,13,1],[12,2,13,8],[15,0,15,8],[17,0,18,1],[17,2,18,8],[19,0,20,1],[19,2,20,8],[21,0,22,1],[21,2,22,8],[23,0,24,1],[23,2,24,8],[25,0,26,1],[25,2,26,8],[28,0,28,8]]}
[{"$f":"+'Cover Page'!$B$29","v":"Annual Performance Report 2025"},null,null,null,{"$f":"+'Cover Page'!$B$33","v":"Enviropower Ltd"}]
[]
["Details of Public & Stakeholder Liaison"]
[]
["Summary of events held during the reporting year."]
["Date",null,"Description"]
[]
[]
[]
[]
[]
[]
[]
[]
[]
["List of events planned for next year"]
["Date",null,"Description"]
[]
[]
[]
[]
[]
[]
[]
[]
[]
[]
[]
["If you wish to be involved in the public liaison programme, please contact _________________"]

{"sheet":"CO2 N2O","index":9,"n_rows":25,"n_cols":6,"rows_kept":25,"cut":false,"hidden":false,"merged":[[25,1,25,3],[16,2,16,3],[4,0,4,3],[9,0,9,3],[17,0,17,3],[13,0,13,3],[12,0,12,1],[8,2,8,3],[11,2,11,3],[19,2,19,3],[22,2,22,3]]}
[{"$f":"+'Cover Page'!$B$29","v":"Annual Performance Report 2025"},null,"Name of Facility as per Permit",null,"Enviropower Ltd"]
[]
["Carbon dioxide emissions and biogenic content of waste inputs",null,null,null,null,"Notes:"]
[]
["Carbon dioxide emissions (all types of plant)"]
[null,"Annual mass of carbon dioxide released","tonnes ",{"$f":"'Operational Data'!G24*'CO2 N2O'!D7","v":38729.858999999997}]
[null,"Annual mass of carbon dioxide released per tonne of waste burned","t CO2 / t waste ",0.94199999999999995]
[null,"Annual mass of carbon dioxide released per MWh of energy exported","t CO2 / MWh export ",{"$f":"D6/'Operational Data'!G28","v":2.691386489510295}]
[null,"Description of how annual carbon dioxide mass emission has been calculated. \nSee Note 1","using Tolvik report 2022 method:\n0.942 tCO2/t waste",null,null,"Note 1: All permits require operators to continuously monitor CO2 to EN14181 and flow to BS EN 16911-2 (unless otherwise agreed in writing). Operators must therefore use the results from these instruments to calculate their annual CO2 emissions. Where an operator does not have a flow meter calibrated to BS EN 16911-2, the averaged flow measurement from that year's periodic monitoring can be used instead. If the plant does not have calibrated CO2 CEMS, a suitably justified emissions factor can be used."]
["Nitrous oxide emissions (only plants which use ammonia or urea to abate NOx emissions)"]
[null,"Annual mass emissions of nitrous oxide","tonnes N2O",{"$f":"('Operational Data'!G24*0.0981)/1000","v":4.0333324500000005}]
[null,"Description of how annual nitrous oxide mass emission has been calculated\nSee Note 2","using 2021 Pollution Inventory data method:\n0.0981 kgN2O/t waste",null,null,"Note 2: All permits require operators to continuously monitor N2O to EN14181 and flow to BS EN 16911-2, unless otherwise agreed in writing. Operators must therefore use the results from these instruments to calculate their annual N2O emissions. Where an operator does not have a flow meter calibrated to BS EN 16911-2, the averaged flow measurement from periodic monitoring can be used instead. If the plant does not have calibrated N2O CEMS, data from periodic monitoring or a suitably justified emissions factor can be used instead."]
["Total annual carbon dioxide + nitrous oxide emissions. \nSee Note 3. ",null,"tonnes CO2e",{"$f":"(D11*265)+D6","v":39798.692099249994},null,"Note 3: Total annual carbon dioxide and nitrous oxide emissions reported as carbon dioxide equivalent where 1 tonne nitrous oxide is equivalent to 265 tonnes carbon dioxide."]
["Biogenic CO2 emissions (See Note 4)",null,null,null,null,"Note 4: Only plants combusting residual municipal waste, refuse derived fuel or solid recovered fuel need complete this section. "]
[null,"Percentage of total carbon dioxide emissions arising from biogenic waste","%"]
[null,"No. of measurements undertaken","Number"]
[null,"Description of how percentage biogenic carbon dioxide emissions have been measured or calculated.\nSee Note 5",null,null,null,"Note 5: The results from C14 sampling should be used if this is carried out at the plant (either via an installed sampler or from spot samples).  \nOtherwise, as an approximation (and in lieu of any more accurate metrics which may be developed in future), the measured or estimated biogenic fraction by net calorific value (see Note 6) can be assumed to be the same as the biogenic CO2 fraction of the total CO2 emissions from the plant. "]
["Biogenic fraction of waste feedstock (See Note 4)"]
[null,"Yearly average biogenic percentage of the waste by net calorific value (NCV)","%"]
[null,"Description of how biogenic percentage (by NCV) has been calculated or estimated. \nSee Note 6",null,null,null,"Note 6: If C14 sampling is carried out at the plant, the methodology set out in the embedded document entitled \"Renewable Energy Association Energy Content of Fuels - Description of Method\" embedded below can be used to calculate the biogenic percentage by net calorific value. Otherwise, data from waste sampling or BIOMA software can be used; or if none of these are available, an estimated figure with justification or a figure assumed on the basis of up-to-date industry data can be used. "]
[null,"Yearly average biogenic percentage of the waste by mass","%"]
[null,"If waste sampling undertaken, no. of samples used to ascertain average biogenic percentages above","Number"]
[null,"Description of how biogenic percentage (by mass) has been calculated or estimated. \nSee Note 7",null,null,null,"Note 7: Where available, data from waste sampling should be used; otherwise, an estimated figure with justification can be used, or a figure assumed on the basis of up-to-date industry data. "]
[]
[null,"Comments:"]

{"sheet":"Residues ","index":10,"n_rows":61,"n_cols":11,"rows_kept":61,"cut":false,"hidden":false,"merged":[[4,10,13,13],[30,0,31,6],[32,0,33,6],[34,0,35,6],[37,0,37,6],[4,0,25,8],[38,2,38,6],[39,0,40,1],[39,2,40,6],[41,0,42,1],[41,2,42,6],[38,0,38,1],[43,0,44,1],[43,2,44,6],[45,0,46,1],[45,2,46,6],[47,0,48,1],[47,2,48,6],[51,0,51,6],[52,0,53,1],[52,2,53,2],[52,3,52,6],[53,3,53,4],[53,5,53,6],[54,0,54,1],[54,3,54,4],[54,5,54,6],[55,0,55,1],[55,3,55,4],[55,5,55,6],[58,0,58,6],[60,0,60,6],[61,0,66,6],[56,0,56,1],[56,3,56,4],[56,5,56,6],[57,0,57,1],[57,3,57,4],[57,5,57,6]]}
["Annual Performance Report 2025",null,null,null,"Name of Facility as per Permit",null,"Enviropower Ltd"]
[]
["Summary of Residue Handling for the reporting year"]
[]
["Residues handled according to our internal residue handling procedures.\n\nAPC Residue destination is Augean.\n\nNon-Hazardous IBA destination is Rabbit Waste Management.\n\nHazardous IBA destination is Augean.",null,null,null,null,null,null,null,null,null,"Include in here a summary of residue handling regimes and destinations "]
[]
[]
[]
[]
[]
[]
[]
[]
[]
[]
[]
[]
[]
[]
[]
[]
[]
[]
[]
[]
[]
[]
["Residue Quality Monitoring Requirements"]
[]
["Summary of monitoring undertaken and compliance"]
["Sampling and analysis as per permit requirements."]
[]
[]
[]
[]
[]
[]
["Commentary on any specific events"]
["Date & Event",null,"Description"]
[]
[]
[]
[]
[]
[]
[]
[]
[]
[]
[]
[]
["Residue Quality Monitoring Results"]
["Parameter (unit) ",null,"Limit*","Normal Operation "]
[null,null,null,"Bottom ash  ",null,"APC Residues"]
["Loss on Ignition (average %)",null,"<5%"]
["Total Organic Carbon (average %)",null,"<3%",1.51]
["No. of Assessments Undertaken",null,"---",4,null,4]
["No. of Hazardous Results",null,"---",0]
["* The permit will specify a limit of either 5% loss on ignition or 3% total organic carbon. If both are measured anyway, please enter the results here, even where the limit does not apply. "]
[]
["Comments :"]

{"sheet":"Water","index":11,"n_rows":23,"n_cols":9,"rows_kept":23,"cut":false,"hidden":false,"merged":[[5,0,6,8],[7,0,8,8],[9,0,10,8],[12,0,12,8],[13,0,13,1],[13,2,13,8],[21,0,21,8],[22,0,22,2],[22,3,22,4],[14,0,15,1],[14,2,15,8],[16,0,17,1],[16,2,17,8],[18,0,19,1],[18,2,19,8],[23,0,23,2],[23,3,23,4],[24,0,24,2],[24,3,24,4],[25,0,25,2],[25,3,25,4],[29,0,29,2],[29,3,29,4],[26,0,26,2],[26,3,26,4],[27,0,27,2],[27,3,27,4],[28,0,28,2],[28,3,28,4]]}
[{"$f":"+'Cover Page'!$B$29","v":"Annual Performance Report 2025"},null,null,null,{"$f":"+'Cover Page'!$B$33","v":"Enviropower Ltd"}]
[]
["Emissions to Water"]
[]
["Summary of monitoring undertaken and compliance"]
["None."]
[]
[]
[]
[]
[]
[]
["Commentary on any specific events"]
["Date & Event",null,"Description"]
[]
[]
[]
[]
[]
[]
[]
["Emissions to Water / Sewer"]
["Parameter",null,null,"Monitoring Frequency",null,"Limit","Target","Max.","Average"]

{"sheet":"Air (periodic)","index":12,"n_rows":39,"n_cols":11,"rows_kept":39,"cut":false,"hidden":false,"merged":[[5,10,8,13],[9,10,11,13],[8,0,8,9],[5,0,6,9],[11,0,11,1],[12,0,12,1],[11,3,11,4],[12,3,12,4],[9,0,10,1],[9,5,9,9],[9,3,10,4],[9,2,10,2],[16,0,16,1],[17,0,17,1],[18,0,18,1],[13,0,13,1],[14,0,14,1],[15,0,15,1],[39,0,40,9],[25,0,25,1],[26,0,26,1],[22,0,22,1],[23,0,23,1],[37,0,37,1],[27,0,27,1],[28,0,28,1],[29,0,29,1],[30,0,30,1],[31,0,31,1],[32,0,32,1],[37,3,37,4],[29,3,29,4],[30,3,30,4],[36,3,36,4],[38,0,38,9],[19,0,19,1],[20,0,20,1],[21,0,21,1],[34,3,34,4],[35,3,35,4],[33,0,33,1],[34,0,34,1],[35,0,35,1],[36,0,36,1],[24,0,24,1],[32,3,32,4],[27,3,27,4],[33,3,33,4],[19,3,19,4],[20,3,20,4],[21,3,21,4],[22,3,22,4],[23,3,23,4],[24,3,24,4],[31,3,31,4],[25,3,25,4],[26,3,26,4],[28,3,28,4],[13,10,14,12],[15,10,16,10],[15,11,16,11],[15,12,16,12],[18,3,18,4],[13,3,13,4],[14,3,14,4],[15,3,15,4],[16,3,16,4],[17,3,17,4]]}
[{"$f":"+'Cover Page'!$B$29","v":"Annual Performance Report 2025"},null,null,null,{"$f":"+'Cover Page'!$B$33","v":"Enviropower Ltd"}]
[]
["Emissions to Air (periodically monitored)"]
[]
["Summary of monitoring undertaken, standards used and compliance",null,null,null,null,null,null,null,null,null,"Notes:"]
["Continuous emissions monitoring as per permit requirements.",null,null,null,null,null,null,null,null,null,"Template may require adjustment for any bespoke monitoring requirements of permit - please also check that all default ELV values, reference periods and the stated oxygen reference value match those for your plant, and edit if necessary"]
[]
[]
["Results of emissions to air that are periodically monitored - oxygen reference 11%"]
["Substance",null,"Ref. Period","Emission Limit Value",null,"Average",null,null,null,null,"User to add additional tables as necessary, depending on whether quarterly or bi-annual reporting is required for the compliance year"]
[null,null,null,null,null,"A1 Jan-Jun","A2 Jan-Jun","A1 Jul-Dec","A2 Jul-Dec","A5"]
["Hydrogen fluoride",null,"1 hr","1 mg/m3",null,0.03,0.3,0.1,0.14000000000000001]
["Cd and Tl and their compounds",null,"0.5-8hrs","0.02 mg/m3",null,5.0000000000000001E-4,2.8999999999999998E-3,5.9999999999999995E-4,1E-3]
["Hg and its compounds",null,"0.5-8hrs","0.02 mg/m3",null,2.5000000000000001E-3,2.8E-3,1.2999999999999999E-3,1.8E-3]
["Sb, As, Pb, Cr, Co, Cu, Mn, Ni, V and their compounds",null,"0.5-8hrs","0.3 mg/m3",null,1.8499999999999999E-2,0.1172,3.1399999999999997E-2,4.53E-2]
["Dioxins & Furans (I-TEQ)",null,"6-8hrs","0.06 ng/m3",null,1.0500000000000001E-2,5.1400000000000001E-2,2.6100000000000002E-2,9.1000000000000004E-3]
["PCBs (WHO-TEQ Humans / Mammals)",null,"6-8hrs","None set ng/m3",null,1.1999999999999999E-3,3.0499999999999999E-2,3.0000000000000001E-3,8.9999999999999998E-4]
["PCBs (WHO-TEQ Fish)",null,"6-8hrs","None set ng/m3",null,1E-4,1.4E-3,2.0000000000000001E-4,0]
["PCBs (WHO-TEQ Birds)",null,"6-8hrs","None set ng/m3",null,2.5000000000000001E-3,4.2999999999999997E-2,9.5999999999999992E-3,0]
["Dioxins & Furans (WHO-TEQ Humans / Mammals)",null,"6-8hrs","None set ng/m3",null,9.1999999999999998E-3,4.5100000000000001E-2,2.1999999999999999E-2,7.9000000000000008E-3]
["Dioxins & Furans (WHO-TEQ Fish)",null,"6-8hrs","None set ng/m3",null,1.03E-2,5.3800000000000001E-2,2.2499999999999999E-2,8.9999999999999993E-3]
["Dioxins & Furans (WHO-TEQ Birds)",null,"6-8hrs","None set ng/m3",null,2.7900000000000001E-2,9.6799999999999997E-2,0.11940000000000001,2.5499999999999998E-2]
["Anthanthrene",null,"6-8hrs","None set mg/m3",null,null,null,0,0]
["Benzo(a)anthracene",null,"6-8hrs","None set mg/m3",null,null,null,0,0]
["Benzo(a)pyrene",null,"6-8hrs","None set mg/m3",null,null,null,0,0]
["Benzo(b)fluoranthene",null,"6-8hrs","None set mg/m3",null,null,null,1E-4,0]
["Benzo(b)naptho(2,1-d) thiophene",null,"6-8hrs","None set mg/m3",null,null,null,1E-4,0]
["Benzo(c)phenanthrene",null,"6-8hrs","None set mg/m3",null,null,null,0,0]
["Benzo(ghi)perylene",null,"6-8hrs","None set mg/m3",null,null,null,0,0]
["Benzo(k)fluoranthene",null,"6-8hrs","None set mg/m3",null,null,null,0,0]
["Cholanthrene",null,"6-8hrs","None set mg/m3",null,null,null,0,0]
["Chrysene",null,"6-8hrs","None set mg/m3",null,null,null,1E-4,0]
["Cyclopenta(cd)pyrene",null,"6-8hrs","None set mg/m3",null,null,null,0,0]
["Dibenzo(ai)pyrene",null,"6-8hrs","None set mg/m3"]
["Dibenzo(ah)anthracene",null,"6-8hrs","None set mg/m3",null,null,null,0,0]
["Fluoranthene",null,"6-8hrs","None set mg/m3",null,null,null,0,1E-4]
["Indeno(123-cd) pyrene",null,"6-8hrs","None set mg/m3",null,null,null,0,0]
["Naphthalene",null,"6-8hrs","None set mg/m3",null,null,null,1E-4,2E-3]
["Comments :"]

{"sheet":"Air (CEMS)","index":13,"n_rows":28,"n_cols":14,"rows_kept":28,"cut":false,"hidden":false,"merged":[[14,13,15,13],[14,14,15,14],[14,15,15,15],[12,13,13,15],[26,0,26,12],[28,0,29,12],[13,0,14,0],[5,0,6,12],[7,0,8,12],[10,0,10,12],[11,0,12,0],[11,2,12,2],[11,1,12,1],[11,3,11,4],[11,5,11,6],[11,7,11,8],[11,9,11,10],[11,11,11,12]]}
[{"$f":"+'Cover Page'!$B$29","v":"Annual Performance Report 2025"},null,null,null,null,null,null,null,{"$f":"+'Cover Page'!$B$33","v":"Enviropower Ltd"}]
[]
["Emissions to Air (continously monitored)"]
[null,null,null,null,null,null,null,null,null,null,null,null,null,"Notes:"]
["Summary of monitoring undertaken, standards used and compliance",null,null,null,null,null,null,null,null,null,null,null,null,"Template may require adjustment for any bespoke monitoring requirements of permit"]
["Continuous emissions monitoring as per permit requirements.",null,null,null,null,null,null,null,null,null,null,null,null,"Please check that all default ELV values, reference periods and the stated oxygen reference value match those for your plant, and edit if necessary"]
[null,null,null,null,null,null,null,null,null,null,null,null,null,"Report to 1 decimal place"]
[]
[]
[]
["Results of emissions to air that are continuously monitored (maximum and average values for each line) - oxygen reference 11%"]
["Substance","Reference Period","Emission Limit Value","A1",null,"A2",null,"A3",null,"A4",null,"A5"]
[null,null,null,"Max.","Avg.","Max.","Avg.","Max.","Avg.","Max.","Avg.","Max.","Avg."]
["Oxides of nitrogen","Daily mean","150 mg/m3 ",{"$f":"NOx!O19","v":148.69999999999999},{"$f":"NOx!N19","v":120.58333333333331},{"$f":"NOx!O34","v":148.19999999999999},{"$f":"NOx!N34","v":146.55833333333334}]
[null,"½ hourly mean*","300 mg/m3 *",{"$f":"NOx!M19","v":223.7},{"$f":"NOx!L19","v":120.82499999999999},{"$f":"NOx!M34","v":244.5},{"$f":"NOx!L34","v":146.73333333333332}]
["Particulates","Daily mean","5 mg/m3 ",{"$f":"Particulates!O19","v":0.9},{"$f":"Particulates!N19","v":4.1666666666666664E-2},{"$f":"Particulates!O34","v":3},{"$f":"Particulates!N34","v":2.4999999999999998E-2}]
[null,"½ hourly mean*","30 mg/m3 *",{"$f":"Particulates!M19","v":3.7},{"$f":"Particulates!L19","v":9.166666666666666E-2},{"$f":"Particulates!M34","v":4.7},{"$f":"Particulates!L34","v":7.4999999999999997E-2}]
["Total Organic Carbon ","Daily mean","10 mg/m3 ",{"$f":"TOC!O19","v":3.5},{"$f":"TOC!N19","v":0.82500000000000007},{"$f":"TOC!O34","v":3.8},{"$f":"TOC!N34","v":1.4636363636363638}]
[null,"½ hourly mean*","20 mg/m3 *",{"$f":"TOC!M19","v":13.3},{"$f":"TOC!L19","v":0.93333333333333346},{"$f":"TOC!M34","v":5.0999999999999996},{"$f":"TOC!L34","v":1.5583333333333336}]
["Hydrogen chloride ","Daily mean","8 mg/m3 ",{"$f":"HCl!O19","v":8.1999999999999993},{"$f":"HCl!N19","v":6.0916666666666659},{"$f":"HCl!O34","v":22},{"$f":"HCl!N34","v":7.8833333333333337}]
[null,"½ hourly mean*","60 mg/m3 *",{"$f":"HCl!M19","v":40.1},{"$f":"HCl!L19","v":6.1416666666666666},{"$f":"HCl!M34","v":343.4},{"$f":"HCl!L34","v":7.8999999999999995}]
["Sulphur dioxide","Daily mean","40 mg/m3 ",{"$f":"'SO2'!O19","v":39.4},{"$f":"'SO2'!N19","v":26.825000000000003},{"$f":"'SO2'!O34","v":56.2},{"$f":"'SO2'!N34","v":31.133333333333329}]
[null,"½ hourly mean*","200 mg/m3 *",{"$f":"'SO2'!M19","v":340.7},{"$f":"'SO2'!L19","v":26.824999999999999},{"$f":"'SO2'!M34","v":791.1},{"$f":"'SO2'!L34","v":31.366666666666664}]
["Carbon monoxide ","Daily mean","50 mg/m3 ",{"$f":"'CO 95% 10 min'!Q22","v":16.3},{"$f":"'CO 95% 10 min'!P22","v":2.6833333333333336},{"$f":"'CO 95% 10 min'!Q37","v":5},{"$f":"'CO 95% 10 min'!P37","v":3.2416666666666667}]
[null,"95%ile 10-min avg*","150 mg/m3 *",{"$f":"'CO 95% 10 min'!M22","v":7.966666666666665},{"$f":"'CO 95% 10 min'!N22","v":2.8583333333333329},{"$f":"'CO 95% 10 min'!M37","v":5.583333333333333},{"$f":"'CO 95% 10 min'!N37","v":3.3583333333333338}]
[" Ammonia","Daily mean","15 mg/m3",{"$f":"'NH3'!O19","v":0.4},{"$f":"'NH3'!N19","v":5.8333333333333327E-2},{"$f":"'NH3'!O34","v":0.2},{"$f":"'NH3'!N34","v":2.5000000000000005E-2}]
["* = delete if your plant does not have these limits\n"]
["Comments :"]

{"sheet":"HCl","index":14,"n_rows":79,"n_cols":17,"rows_kept":79,"cut":false,"hidden":false,"merged":[[12,16,15,18],[51,9,63,9],[66,9,78,9],[4,9,4,14],[4,1,4,3],[4,4,4,6],[48,0,51,6],[47,0,47,6],[6,9,18,9],[21,9,33,9],[36,9,48,9],[3,16,7,18],[9,16,11,18],[18,4,18,6]]}
[{"$f":"+'Cover Page'!$B$29","v":"Annual Performance Report 2025"},null,null,null,{"$f":"+'Cover Page'!$B$33","v":"Enviropower Ltd"}]
[]
["Monitoring of Hydrogen Chloride emissions",null,null,"Whole Installation",null,null,"See  Notes in Cell Q3",null,null,{"$f":"+A3","v":"Monitoring of Hydrogen Chloride emissions"},null,null,null,"Per Combustion Line",null,null,"Notes:"]
[null,null,null,null,null,null,null,null,null,null,null,null,null,null,null,null,"User to add logic to complete Whole installation, Table A5:G18. From the data in Per Combustion Line, Table J6:O79, subject to No. of lines installed"]
[{"$f":"+'Cover Page'!C39","v":2025},"1/2 Hourly Reference Periods",null,null,"Daily Reference Periods"]
["mg/Nm3","1/2 hourly HCl ELV","Monthly mean of half-hourly averages","Highest half- hourly average","Daily HCl ELV","Monthly mean of  daily averages","Highest daily average",null,null,{"$f":"+A5","v":2025},"mg/Nm3","Monthly 1/2 hourly mean","Monthly 1/2 hourly maximum","Monthly daily mean","Monthly daily maximum"]
["Jan",60,{"$f":"AVERAGE(L7,L22)","v":9.1499999999999986},{"$f":"MAX(M7,M22)","v":293.5},8,{"$f":"AVERAGE(N7,N22)","v":9.6},{"$f":"MAX(O7,O22)","v":22},null,null,"A1","Jan",6.6,12.8,7,7.8]
["Feb",60,{"$f":"AVERAGE(L8,L23)","v":7.55},{"$f":"MAX(M8,M23)","v":11.4},8,{"$f":"AVERAGE(N8,N23)","v":7.15},{"$f":"MAX(O8,O23)","v":7.8},null,null,null,"Feb",7.5,11.4,6.8,7.8]
["Mar",60,7.1,24.6,8,7.1,7.8,null,null,null,"Mar",6.7,15,6.7,7.8,null,"Whole Installation table A5:G18:"]
["Apr",60,7.75,40.1,8,7.65,7.8,null,null,null,"Apr",7.7,40.1,7.7,7.8,null,"Mean: for 1/2 hourly and daily periods calculate mean of values across all operational combustion lines for the month"]
["May",60,4.0999999999999996,343.4,8,4,21.2,null,null,null,"May",0,0,0,0]
["Jun",60,3.35,21.6,8,3.35,7.8,null,null,null,"Jun",0,0,0,0]
["Jul",60,7.6999999999999993,11.7,8,7.65,7.8,null,null,null,"Jul",7.6,11.7,7.6,7.8,null,"Maximum: for 1/2 hourly and daily periods use the highest value across all operational combustion lines for the month"]
["Aug",60,7.8,30.4,8,7.7,8.1999999999999993,null,null,null,"Aug",7.8,30.4,7.7,8.1999999999999993]
["Sep",60,7.65,11.8,8,7.6,7.8,null,null,null,"Sep",7.7,11.6,7.6,7.8]
["Oct",60,7.55,23.5,8,7.5,7.8,null,null,null,"Oct",7.6,12,7.5,7.8]
["Nov",60,7.2,19.100000000000001,8,7.2,7.8,null,null,null,"Nov",7.2,19.100000000000001,7.2,7.8]
["Dec",60,7.35,14.2,8,7.35,7.8,null,null,null,"Dec",7.3,11.6,7.3,7.8]
[null,null,null,null,null,null,null,null,null,null,"Annual",{"$f":"AVERAGE(L7:L18)","v":6.1416666666666666},{"$f":"MAX(M7:M18)","v":40.1},{"$f":"AVERAGE(N7:N18)","v":6.0916666666666659},{"$f":"MAX(O7:O18)","v":8.1999999999999993}]
[]
[null,null,null,null,null,null,null,null,null,{"$f":"+A5","v":2025},"mg/Nm3","Monthly 1/2 hourly mean","Monthly 1/2 hourly maximum","Monthly daily mean","Monthly daily maximum"]
[null,null,null,null,null,null,null,null,null,"A2","Jan",11.7,293.5,12.2,22]
[null,null,null,null,null,null,null,null,null,null,"Feb",7.6,11.2,7.5,7.8]
[null,null,null,null,null,null,null,null,null,null,"Mar",7.5,24.6,7.5,7.8]
[null,null,null,null,null,null,null,null,null,null,"Apr",7.8,11.3,7.6,7.8]
[null,null,null,null,null,null,null,null,null,null,"May",8.1999999999999993,343.4,8,21.2]
[null,null,null,null,null,null,null,null,null,null,"Jun",6.7,21.6,6.7,7.8]
[null,null,null,null,null,null,null,null,null,null,"Jul",7.8,10,7.7,7.8]
[null,null,null,null,null,null,null,null,null,null,"Aug",7.8,15.9,7.7,7.8]
[null,null,null,null,null,null,null,null,null,null,"Sep",7.6,11.8,7.6,7.8]
[null,null,null,null,null,null,null,null,null,null,"Oct",7.5,23.5,7.5,7.8]
[null,null,null,null,null,null,null,null,null,null,"Nov",7.2,16,7.2,7.8]
[null,null,null,null,null,null,null,null,null,null,"Dec",7.4,14.2,7.4,7.8]
[null,null,null,null,null,null,null,null,null,null,"Annual",{"$f":"AVERAGE(L22:L33)","v":7.8999999999999995},{"$f":"MAX(M22:M33)","v":343.4},{"$f":"AVERAGE(N22:N33)","v":7.8833333333333337},{"$f":"MAX(O22:O33)","v":22}]
[]
[null,null,null,null,null,null,null,null,null,{"$f":"+A5","v":2025},"mg/Nm3","Monthly 1/2 hourly mean","Monthly 1/2 hourly maximum","Monthly daily mean","Monthly daily maximum"]
[null,null,null,null,null,null,null,null,null,"A3","Jan"]
[null,null,null,null,null,null,null,null,null,null,"Feb"]
[null,null,null,null,null,null,null,null,null,null,"Mar"]
[null,null,null,null,null,null,null,null,null,null,"Apr"]
[null,null,null,null,null,null,null,null,null,null,"May"]
[null,null,null,null,null,null,null,null,null,null,"Jun"]
[null,null,null,null,null,null,null,null,null,null,"Jul"]
[null,null,null,null,null,null,null,null,null,null,"Aug"]
[null,null,null,null,null,null,null,null,null,null,"Sep"]
[null,null,null,null,null,null,null,null,null,null,"Oct"]
[null,null,null,null,null,null,null,null,null,null,"Nov"]
["Comments :",null,null,null,null,null,null,null,null,null,"Dec"]
[null,null,null,null,null,null,null,null,null,null,"Annual",{"$f":"AVERAGE(L37:L48)","v":{"$error":"#DIV/0!"}},{"$f":"MAX(M37:M48)","v":0},{"$f":"AVERAGE(N37:N48)","v":{"$error":"#DIV/0!"}},{"$f":"MAX(O37:O48)","v":0}]
[]
[null,null,null,null,null,null,null,null,null,{"$f":"+A5","v":2025},"mg/Nm3","Monthly 1/2 hourly mean","Monthly 1/2 hourly maximum","Monthly daily mean","Monthly daily maximum"]
[null,null,null,null,null,null,null,null,null,"A4","Jan"]
[null,null,null,null,null,null,null,null,null,null,"Feb"]
[null,null,null,null,null,null,null,null,null,null,"Mar"]
[null,null,null,null,null,null,null,null,null,null,"Apr"]
[null,null,null,null,null,null,null,null,null,null,"May"]
[null,null,null,null,null,null,null,null,null,null,"Jun"]
[null,null,null,null,null,null,null,null,null,null,"Jul"]
[null,null,null,null,null,null,null,null,null,null,"Aug"]
[null,null,null,null,null,null,null,null,null,null,"Sep"]
[null,null,null,null,null,null,null,null,null,null,"Oct"]
[null,null,null,null,null,null,null,null,null,null,"Nov"]
[null,null,null,null,null,null,null,null,null,null,"Dec"]
[null,null,null,null,null,null,null,null,null,null,"Annual",{"$f":"AVERAGE(L52:L63)","v":{"$error":"#DIV/0!"}},{"$f":"MAX(M52:M63)","v":0},{"$f":"AVERAGE(N52:N63)","v":{"$error":"#DIV/0!"}},{"$f":"MAX(O52:O63)","v":0}]
[]
[null,null,null,null,null,null,null,null,null,{"$f":"+A5","v":2025},"mg/Nm3","Monthly 1/2 hourly mean","Monthly 1/2 hourly maximum","Monthly daily mean","Monthly daily maximum"]
[null,null,null,null,null,null,null,null,null,"A5","Jan"]
[null,null,null,null,null,null,null,null,null,null,"Feb"]
[null,null,null,null,null,null,null,null,null,null,"Mar"]
[null,null,null,null,null,null,null,null,null,null,"Apr"]
[null,null,null,null,null,null,null,null,null,null,"May"]
[null,null,null,null,null,null,null,null,null,null,"Jun"]
[null,null,null,null,null,null,null,null,null,null,"Jul"]
[null,null,null,null,null,null,null,null,null,null,"Aug"]
[null,null,null,null,null,null,null,null,null,null,"Sep"]
[null,null,null,null,null,null,null,null,null,null,"Oct"]
[null,null,null,null,null,null,null,null,null,null,"Nov"]
[null,null,null,null,null,null,null,null,null,null,"Dec"]
[null,null,null,null,null,null,null,null,null,null,"Annual",{"$f":"AVERAGE(L67:L78)","v":{"$error":"#DIV/0!"}},{"$f":"MAX(M67:M78)","v":0},{"$f":"AVERAGE(N67:N78)","v":{"$error":"#DIV/0!"}},{"$f":"MAX(O67:O78)","v":0}]

{"sheet":"SO2","index":15,"n_rows":79,"n_cols":17,"rows_kept":79,"cut":false,"hidden":false,"merged":[[3,16,7,18],[9,16,11,18],[12,16,15,18],[66,9,78,9],[4,1,4,3],[4,4,4,6],[4,9,4,14],[6,9,18,9],[21,9,33,9],[36,9,48,9],[47,0,47,6],[48,0,51,6],[51,9,63,9],[18,4,18,6]]}
[{"$f":"+'Cover Page'!$B$29","v":"Annual Performance Report 2025"},null,null,null,{"$f":"+'Cover Page'!$B$33","v":"Enviropower Ltd"}]
[]
["Monitoring of Sulphur dioxide emissions",null,null,"Whole Installation",null,null,"See  Notes in Cell Q3",null,null,{"$f":"+A3","v":"Monitoring of Sulphur dioxide emissions"},null,null,null,"Per Combustion Line",null,null,"Notes:"]
[null,null,null,null,null,null,null,null,null,null,null,null,null,null,null,null,"User to add logic to complete Whole installation, Table A5:G18. From the data in Per Combustion Line, Table J6:O79, subject to No. of lines installed"]
[{"$f":"+'Cover Page'!C39","v":2025},"1/2 Hourly Reference Periods",null,null,"Daily Reference Periods"]
["mg/Nm3","1/2 hourly SO2 ELV","Monthly mean of half-hourly averages","Highest half- hourly average","Daily SO2 ELV","Monthly mean of  daily averages","Highest daily average",null,null,{"$f":"+A5","v":2025},"mg/Nm3","Monthly 1/2 hourly mean","Monthly 1/2 hourly maximum","Monthly daily mean","Monthly daily maximum"]
["Jan",200,{"$f":"AVERAGE(L7,L22)","v":34.849999999999994},{"$f":"MAX(M7,M22)","v":732.7},40,{"$f":"AVERAGE(N7,N22)","v":34.25},{"$f":"MAX(O7,O22)","v":50},null,null,"A1","Jan",34.799999999999997,78.8,34.200000000000003,39.4]
["Feb",200,{"$f":"AVERAGE(L8,L23)","v":33.35},{"$f":"MAX(M8,M23)","v":90.2},40,{"$f":"AVERAGE(N8,N23)","v":33.799999999999997},{"$f":"MAX(O8,O23)","v":38.1},null,null,null,"Feb",35.9,54.1,37.1,38.1]
["Mar",200,32.200000000000003,122.8,40,32.15,39.299999999999997,null,null,null,"Mar",35.200000000000003,122.8,34.9,39.299999999999997,null,"Whole Installation table A5:G18:"]
["Apr",200,28.15,143.6,40,28.1,38.6,null,null,null,"Apr",25.8,143.6,25.9,34.4,null,"Mean: for 1/2 hourly and daily periods calculate mean of values across all operational combustion lines for the month"]
["May",200,16.45,791.1,40,15.6,56.2,null,null,null,"May",0,0,0,0]
["Jun",200,14.85,123.3,40,14.8,39.5,null,null,null,"Jun",0,0,0,0]
["Jul",200,28.45,340.7,40,27.950000000000003,35.9,null,null,null,"Jul",27.4,340.7,26.8,35.9,null,"Maximum: for 1/2 hourly and daily periods use the highest value across all operational combustion lines for the month"]
["Aug",200,25.25,109.4,40,25.2,38.799999999999997,null,null,null,"Aug",25.5,109.4,25.5,38.700000000000003]
["Sep",200,29.65,99.2,40,30.05,39.200000000000003,null,null,null,"Sep",30.8,99.2,31.1,39.200000000000003]
["Oct",200,33.299999999999997,132.19999999999999,40,33.299999999999997,39.4,null,null,null,"Oct",32.299999999999997,82.4,32.299999999999997,39.4]
["Nov",200,35.299999999999997,114.3,40,35.200000000000003,39.4,null,null,null,"Nov",36.200000000000003,109.2,36.1,39.4]
["Dec",200,37.35,89.6,40,37.35,39.4,null,null,null,"Dec",38,81.3,38,39.4]
[null,null,null,null,null,null,null,null,null,null,"Annual",{"$f":"AVERAGE(L7:L18)","v":26.824999999999999},{"$f":"MAX(M7:M18)","v":340.7},{"$f":"AVERAGE(N7:N18)","v":26.825000000000003},{"$f":"MAX(O7:O18)","v":39.4}]
[]
[null,null,null,null,null,null,null,null,null,{"$f":"+A5","v":2025},"mg/Nm3","Monthly 1/2 hourly mean","Monthly 1/2 hourly maximum","Monthly daily mean","Monthly daily maximum"]
[null,null,null,null,null,null,null,null,null,"A2","Jan",34.9,732.7,34.299999999999997,50]
[null,null,null,null,null,null,null,null,null,null,"Feb",30.8,90.2,30.5,36.299999999999997]
[null,null,null,null,null,null,null,null,null,null,"Mar",29.2,114.3,29.4,38.200000000000003]
[null,null,null,null,null,null,null,null,null,null,"Apr",30.5,71.3,30.3,38.6]
[null,null,null,null,null,null,null,null,null,null,"May",32.9,791.1,31.2,56.2]
[null,null,null,null,null,null,null,null,null,null,"Jun",29.7,123.3,29.6,39.5]
[null,null,null,null,null,null,null,null,null,null,"Jul",29.5,56.3,29.1,34]
[null,null,null,null,null,null,null,null,null,null,"Aug",25,92.6,24.9,38.799999999999997]
[null,null,null,null,null,null,null,null,null,null,"Sep",28.5,68.7,29,39.200000000000003]
[null,null,null,null,null,null,null,null,null,null,"Oct",34.299999999999997,132.19999999999999,34.299999999999997,39.299999999999997]
[null,null,null,null,null,null,null,null,null,null,"Nov",34.4,114.3,34.299999999999997,39.4]
[null,null,null,null,null,null,null,null,null,null,"Dec",36.700000000000003,89.6,36.700000000000003,39.4]
[null,null,null,null,null,null,null,null,null,null,"Annual",{"$f":"AVERAGE(L22:L33)","v":31.366666666666664},{"$f":"MAX(M22:M33)","v":791.1},{"$f":"AVERAGE(N22:N33)","v":31.133333333333329},{"$f":"MAX(O22:O33)","v":56.2}]
[]
[null,null,null,null,null,null,null,null,null,{"$f":"+A5","v":2025},"mg/Nm3","Monthly 1/2 hourly mean","Monthly 1/2 hourly maximum","Monthly daily mean","Monthly daily maximum"]
[null,null,null,null,null,null,null,null,null,"A3","Jan"]
[null,null,null,null,null,null,null,null,null,null,"Feb"]
[null,null,null,null,null,null,null,null,null,null,"Mar"]
[null,null,null,null,null,null,null,null,null,null,"Apr"]
[null,null,null,null,null,null,null,null,null,null,"May"]
[null,null,null,null,null,null,null,null,null,null,"Jun"]
[null,null,null,null,null,null,null,null,null,null,"Jul"]
[null,null,null,null,null,null,null,null,null,null,"Aug"]
[null,null,null,null,null,null,null,null,null,null,"Sep"]
[null,null,null,null,null,null,null,null,null,null,"Oct"]
[null,null,null,null,null,null,null,null,null,null,"Nov"]
["Comments :",null,null,null,null,null,null,null,null,null,"Dec"]
[null,null,null,null,null,null,null,null,null,null,"Annual",{"$f":"AVERAGE(L37:L48)","v":{"$error":"#DIV/0!"}},{"$f":"MAX(M37:M48)","v":0},{"$f":"AVERAGE(N37:N48)","v":{"$error":"#DIV/0!"}},{"$f":"MAX(O37:O48)","v":0}]
[]
[null,null,null,null,null,null,null,null,null,{"$f":"+A5","v":2025},"mg/Nm3","Monthly 1/2 hourly mean","Monthly 1/2 hourly maximum","Monthly daily mean","Monthly daily maximum"]
[null,null,null,null,null,null,null,null,null,"A4","Jan"]
[null,null,null,null,null,null,null,null,null,null,"Feb"]
[null,null,null,null,null,null,null,null,null,null,"Mar"]
[null,null,null,null,null,null,null,null,null,null,"Apr"]
[null,null,null,null,null,null,null,null,null,null,"May"]
[null,null,null,null,null,null,null,null,null,null,"Jun"]
[null,null,null,null,null,null,null,null,null,null,"Jul"]
[null,null,null,null,null,null,null,null,null,null,"Aug"]
[null,null,null,null,null,null,null,null,null,null,"Sep"]
[null,null,null,null,null,null,null,null,null,null,"Oct"]
[null,null,null,null,null,null,null,null,null,null,"Nov"]
[null,null,null,null,null,null,null,null,null,null,"Dec"]
[null,null,null,null,null,null,null,null,null,null,"Annual",{"$f":"AVERAGE(L52:L63)","v":{"$error":"#DIV/0!"}},{"$f":"MAX(M52:M63)","v":0},{"$f":"AVERAGE(N52:N63)","v":{"$error":"#DIV/0!"}},{"$f":"MAX(O52:O63)","v":0}]
[]
[null,null,null,null,null,null,null,null,null,{"$f":"+A5","v":2025},"mg/Nm3","Monthly 1/2 hourly mean","Monthly 1/2 hourly maximum","Monthly daily mean","Monthly daily maximum"]
[null,null,null,null,null,null,null,null,null,"A5","Jan"]
[null,null,null,null,null,null,null,null,null,null,"Feb"]
[null,null,null,null,null,null,null,null,null,null,"Mar"]
[null,null,null,null,null,null,null,null,null,null,"Apr"]
[null,null,null,null,null,null,null,null,null,null,"May"]
[null,null,null,null,null,null,null,null,null,null,"Jun"]
[null,null,null,null,null,null,null,null,null,null,"Jul"]
[null,null,null,null,null,null,null,null,null,null,"Aug"]
[null,null,null,null,null,null,null,null,null,null,"Sep"]
[null,null,null,null,null,null,null,null,null,null,"Oct"]
[null,null,null,null,null,null,null,null,null,null,"Nov"]
[null,null,null,null,null,null,null,null,null,null,"Dec"]
[null,null,null,null,null,null,null,null,null,null,"Annual",{"$f":"AVERAGE(L67:L78)","v":{"$error":"#DIV/0!"}},{"$f":"MAX(M67:M78)","v":0},{"$f":"AVERAGE(N67:N78)","v":{"$error":"#DIV/0!"}},{"$f":"MAX(O67:O78)","v":0}]

{"sheet":"NOx","index":16,"n_rows":79,"n_cols":17,"rows_kept":79,"cut":false,"hidden":false,"merged":[[3,16,7,18],[9,16,11,18],[12,16,15,18],[66,9,78,9],[4,1,4,3],[4,4,4,6],[4,9,4,14],[6,9,18,9],[21,9,33,9],[36,9,48,9],[47,0,47,6],[48,0,51,6],[51,9,63,9],[18,4,18,6]]}
[{"$f":"+'Cover Page'!$B$29","v":"Annual Performance Report 2025"},null,null,null,{"$f":"+'Cover Page'!$B$33","v":"Enviropower Ltd"}]
[]
["Monitoring of Oxides of Nitrogen emissions",null,null,"Whole Installation",null,null,"See  Notes in Cell Q3",null,null,{"$f":"+A3","v":"Monitoring of Oxides of Nitrogen emissions"},null,null,null,"Per Combustion Line",null,null,"Notes:"]
[null,null,null,null,null,null,null,null,null,null,null,null,null,null,null,null,"User to add logic to complete Whole installation, Table A5:G18. From the data in Per Combustion Line, Table J6:O79, subject to No. of lines installed"]
[{"$f":"+'Cover Page'!C39","v":2025},"1/2 Hourly Reference Periods",null,null,"Daily Reference Periods"]
["mg/Nm3","1/2 hourly NOx ELV","Monthly mean of half-hourly averages","Highest half- hourly average","Daily NOx ELV","Monthly mean of  daily averages","Highest daily average",null,null,{"$f":"+A5","v":2025},"mg/Nm3","Monthly 1/2 hourly mean","Monthly 1/2 hourly maximum","Monthly daily mean","Monthly daily maximum"]
["Jan",300,{"$f":"AVERAGE(L7,L22)","v":136.60000000000002},{"$f":"MAX(M7,M22)","v":177.7},150,{"$f":"AVERAGE(N7,N22)","v":133.89999999999998},{"$f":"MAX(O7,O22)","v":148},null,null,"A1","Jan",133.9,177.7,130.19999999999999,148]
["Feb",300,{"$f":"AVERAGE(L8,L23)","v":146.5},{"$f":"MAX(M8,M23)","v":161.9},150,{"$f":"AVERAGE(N8,N23)","v":147.25},{"$f":"MAX(O8,O23)","v":147.9},null,null,null,"Feb",146.4,161.9,146.9,147.9]
["Mar",300,147.75,181.7,150,147.75,148,null,null,null,"Mar",147.80000000000001,181.7,147.80000000000001,147.9,null,"Whole Installation table A5:G18:"]
["Apr",300,145.10000000000002,206,150,144.94999999999999,148.69999999999999,null,null,null,"Apr",144.9,206,144.9,148.69999999999999,null,"Mean: for 1/2 hourly and daily periods calculate mean of values across all operational combustion lines for the month"]
["May",300,74.55,244.5,150,73.900000000000006,148,null,null,null,"May",0,0,0,0]
["Jun",300,73.7,205,150,73.7,148.1,null,null,null,"Jun",0,0,0,0]
["Jul",300,147.25,186,150,147.5,148.19999999999999,null,null,null,"Jul",146.80000000000001,186,147.19999999999999,148.19999999999999,null,"Maximum: for 1/2 hourly and daily periods use the highest value across all operational combustion lines for the month"]
["Aug",300,147.60000000000002,188.5,150,147.60000000000002,148.19999999999999,null,null,null,"Aug",147.4,188.5,147.4,148]
["Sep",300,146.5,208.7,150,146.6,148,null,null,null,"Sep",146.69999999999999,197.6,146.69999999999999,148]
["Oct",300,147.80000000000001,210.3,150,147.75,148,null,null,null,"Oct",147.69999999999999,210.3,147.6,148]
["Nov",300,147.30000000000001,194.1,150,147.25,148.19999999999999,null,null,null,"Nov",146.69999999999999,194.1,146.69999999999999,147.9]
["Dec",300,144.69999999999999,223.7,150,144.69999999999999,148,null,null,null,"Dec",141.6,223.7,141.6,148]
[null,null,null,null,null,null,null,null,null,null,"Annual",{"$f":"AVERAGE(L7:L18)","v":120.82499999999999},{"$f":"MAX(M7:M18)","v":223.7},{"$f":"AVERAGE(N7:N18)","v":120.58333333333331},{"$f":"MAX(O7:O18)","v":148.69999999999999}]
[]
[null,null,null,null,null,null,null,null,null,{"$f":"+A5","v":2025},"mg/Nm3","Monthly 1/2 hourly mean","Monthly 1/2 hourly maximum","Monthly daily mean","Monthly daily maximum"]
[null,null,null,null,null,null,null,null,null,"A2","Jan",139.30000000000001,176,137.6,147.80000000000001]
[null,null,null,null,null,null,null,null,null,null,"Feb",146.6,147.4,147.6,147.9]
[null,null,null,null,null,null,null,null,null,null,"Mar",147.69999999999999,177.6,147.69999999999999,148]
[null,null,null,null,null,null,null,null,null,null,"Apr",145.30000000000001,182,145,148]
[null,null,null,null,null,null,null,null,null,null,"May",149.1,244.5,147.80000000000001,148]
[null,null,null,null,null,null,null,null,null,null,"Jun",147.4,205,147.4,148.1]
[null,null,null,null,null,null,null,null,null,null,"Jul",147.69999999999999,169.9,147.80000000000001,147.9]
[null,null,null,null,null,null,null,null,null,null,"Aug",147.80000000000001,186,147.80000000000001,148.19999999999999]
[null,null,null,null,null,null,null,null,null,null,"Sep",146.30000000000001,208.7,146.5,148]
[null,null,null,null,null,null,null,null,null,null,"Oct",147.9,167.6,147.9,148]
[null,null,null,null,null,null,null,null,null,null,"Nov",147.9,177.3,147.80000000000001,148.19999999999999]
[null,null,null,null,null,null,null,null,null,null,"Dec",147.80000000000001,175.6,147.80000000000001,148]
[null,null,null,null,null,null,null,null,null,null,"Annual",{"$f":"AVERAGE(L22:L33)","v":146.73333333333332},{"$f":"MAX(M22:M33)","v":244.5},{"$f":"AVERAGE(N22:N33)","v":146.55833333333334},{"$f":"MAX(O22:O33)","v":148.19999999999999}]
[]
[null,null,null,null,null,null,null,null,null,{"$f":"+A5","v":2025},"mg/Nm3","Monthly 1/2 hourly mean","Monthly 1/2 hourly maximum","Monthly daily mean","Monthly daily maximum"]
[null,null,null,null,null,null,null,null,null,"A3","Jan"]
[null,null,null,null,null,null,null,null,null,null,"Feb"]
[null,null,null,null,null,null,null,null,null,null,"Mar"]
[null,null,null,null,null,null,null,null,null,null,"Apr"]
[null,null,null,null,null,null,null,null,null,null,"May"]
[null,null,null,null,null,null,null,null,null,null,"Jun"]
[null,null,null,null,null,null,null,null,null,null,"Jul"]
[null,null,null,null,null,null,null,null,null,null,"Aug"]
[null,null,null,null,null,null,null,null,null,null,"Sep"]
[null,null,null,null,null,null,null,null,null,null,"Oct"]
[null,null,null,null,null,null,null,null,null,null,"Nov"]
["Comments :",null,null,null,null,null,null,null,null,null,"Dec"]
[null,null,null,null,null,null,null,null,null,null,"Annual",{"$f":"AVERAGE(L37:L48)","v":{"$error":"#DIV/0!"}},{"$f":"MAX(M37:M48)","v":0},{"$f":"AVERAGE(N37:N48)","v":{"$error":"#DIV/0!"}},{"$f":"MAX(O37:O48)","v":0}]
[]
[null,null,null,null,null,null,null,null,null,{"$f":"+A5","v":2025},"mg/Nm3","Monthly 1/2 hourly mean","Monthly 1/2 hourly maximum","Monthly daily mean","Monthly daily maximum"]
[null,null,null,null,null,null,null,null,null,"A4","Jan"]
[null,null,null,null,null,null,null,null,null,null,"Feb"]
[null,null,null,null,null,null,null,null,null,null,"Mar"]
[null,null,null,null,null,null,null,null,null,null,"Apr"]
[null,null,null,null,null,null,null,null,null,null,"May"]
[null,null,null,null,null,null,null,null,null,null,"Jun"]
[null,null,null,null,null,null,null,null,null,null,"Jul"]
[null,null,null,null,null,null,null,null,null,null,"Aug"]
[null,null,null,null,null,null,null,null,null,null,"Sep"]
[null,null,null,null,null,null,null,null,null,null,"Oct"]
[null,null,null,null,null,null,null,null,null,null,"Nov"]
[null,null,null,null,null,null,null,null,null,null,"Dec"]
[null,null,null,null,null,null,null,null,null,null,"Annual",{"$f":"AVERAGE(L52:L63)","v":{"$error":"#DIV/0!"}},{"$f":"MAX(M52:M63)","v":0},{"$f":"AVERAGE(N52:N63)","v":{"$error":"#DIV/0!"}},{"$f":"MAX(O52:O63)","v":0}]
[]
[null,null,null,null,null,null,null,null,null,{"$f":"+A5","v":2025},"mg/Nm3","Monthly 1/2 hourly mean","Monthly 1/2 hourly maximum","Monthly daily mean","Monthly daily maximum"]
[null,null,null,null,null,null,null,null,null,"A5","Jan"]
[null,null,null,null,null,null,null,null,null,null,"Feb"]
[null,null,null,null,null,null,null,null,null,null,"Mar"]
[null,null,null,null,null,null,null,null,null,null,"Apr"]
[null,null,null,null,null,null,null,null,null,null,"May"]
[null,null,null,null,null,null,null,null,null,null,"Jun"]
[null,null,null,null,null,null,null,null,null,null,"Jul"]
[null,null,null,null,null,null,null,null,null,null,"Aug"]
[null,null,null,null,null,null,null,null,null,null,"Sep"]
[null,null,null,null,null,null,null,null,null,null,"Oct"]
[null,null,null,null,null,null,null,null,null,null,"Nov"]
[null,null,null,null,null,null,null,null,null,null,"Dec"]
[null,null,null,null,null,null,null,null,null,null,"Annual",{"$f":"AVERAGE(L67:L78)","v":{"$error":"#DIV/0!"}},{"$f":"MAX(M67:M78)","v":0},{"$f":"AVERAGE(N67:N78)","v":{"$error":"#DIV/0!"}},{"$f":"MAX(O67:O78)","v":0}]

{"sheet":"TOC","index":17,"n_rows":79,"n_cols":17,"rows_kept":79,"cut":false,"hidden":false,"merged":[[3,16,7,18],[9,16,11,18],[12,16,15,18],[66,9,78,9],[4,1,4,3],[4,4,4,6],[4,9,4,14],[6,9,18,9],[21,9,33,9],[36,9,48,9],[47,0,47,6],[48,0,51,6],[51,9,63,9]]}
[{"$f":"+'Cover Page'!$B$29","v":"Annual Performance Report 2025"},null,null,null,{"$f":"+'Cover Page'!$B$33","v":"Enviropower Ltd"}]
[]
["Monitoring of Total organic carbon emissions",null,null,"Whole Installation",null,null,"See  Notes in Cell Q3",null,null,{"$f":"+A3","v":"Monitoring of Total organic carbon emissions"},null,null,null,"Per Combustion Line",null,null,"Notes:"]
[null,null,null,null,null,null,null,null,null,null,null,null,null,null,null,null,"User to add logic to complete Whole installation, Table A5:G18. From the data in Per Combustion Line, Table J6:O79, subject to No. of lines installed"]
[{"$f":"+'Cover Page'!C39","v":2025},"1/2 Hourly Reference Periods",null,null,"Daily Reference Periods"]
["mg/Nm3","1/2 hourly TOC ELV","Monthly mean of half-hourly averages","Highest half- hourly average","Daily TOC ELV","Monthly mean of  daily averages","Highest daily average",null,null,{"$f":"+A5","v":2025},"mg/Nm3","Monthly 1/2 hourly mean","Monthly 1/2 hourly maximum","Monthly daily mean","Monthly daily maximum"]
["Jan",20,{"$f":"AVERAGE(L7,L22)","v":2.95},{"$f":"MAX(M7,M22)","v":6},10,{"$f":"AVERAGE(N7,N22)","v":2.9},{"$f":"MAX(O7,O22)","v":3.8},null,null,"A1","Jan",2.7,6,2.8,3.5]
["Feb",20,{"$f":"AVERAGE(L8,L23)","v":1.5499999999999998},{"$f":"MAX(M8,M23)","v":4.7},10,{"$f":"AVERAGE(N8,N23)","v":0.4},{"$f":"MAX(O8,O23)","v":2},null,null,null,"Feb",1.4,2.2000000000000002,0.4,1.4]
["Mar",20,1.2,5,10,1.2,2.9,null,null,null,"Mar",0.9,3.8,0.9,2,null,"Whole Installation table A5:G18:"]
["Apr",20,2.1,13.3,10,1.95,3.1,null,null,null,"Apr",2.1,13.3,2,3.1,null,"Mean: for 1/2 hourly and daily periods calculate mean of values across all operational combustion lines for the month"]
["May",20,0.7,3.6,10,0.7,2.1,null,null,null,"May",0,0,0,0]
["Jun",20,0.8,4.0999999999999996,10,0.8,2.2999999999999998,null,null,null,"Jun",0,0,0,0]
["Jul",20,1.35,3.2,10,1.25,2,null,null,null,"Jul",1,3,0.9,1.8,null,"Maximum: for 1/2 hourly and daily periods use the highest value across all operational combustion lines for the month"]
["Aug",20,0.9,5,10,0.8,1.5,null,null,null,"Aug",0.8,3.3,0.7,1.4]
["Sep",20,1.1000000000000001,4.5,10,1,2.9,null,null,null,"Sep",0.8,4.5,0.7,1.3]
["Oct",20,0.65,3.3,10,0.60000000000000009,1.4,null,null,null,"Oct",0.4,3.3,0.4,0.9]
["Nov",20,0.8,3.6,10,0.75,1.9,null,null,null,"Nov",0.5,3.6,0.5,1.5]
["Dec",20,0.85000000000000009,3.4,10,0.85000000000000009,1.8,null,null,null,"Dec",0.6,3.4,0.6,1.5]
[null,null,null,null,null,null,null,null,null,null,"Annual",{"$f":"AVERAGE(L7:L18)","v":0.93333333333333346},{"$f":"MAX(M7:M18)","v":13.3},{"$f":"AVERAGE(N7:N18)","v":0.82500000000000007},{"$f":"MAX(O7:O18)","v":3.5}]
[]
[null,null,null,null,null,null,null,null,null,{"$f":"+A5","v":2025},"mg/Nm3","Monthly 1/2 hourly mean","Monthly 1/2 hourly maximum","Monthly daily mean","Monthly daily maximum"]
[null,null,null,null,null,null,null,null,null,"A2","Jan",3.2,5.0999999999999996,3,3.8]
[null,null,null,null,null,null,null,null,null,null,"Feb",1.7,4.7,"1..5",2]
[null,null,null,null,null,null,null,null,null,null,"Mar",1.5,5,1.5,2.9]
[null,null,null,null,null,null,null,null,null,null,"Apr",2.1,4,1.9,2.6]
[null,null,null,null,null,null,null,null,null,null,"May",1.4,3.6,1.4,2.1]
[null,null,null,null,null,null,null,null,null,null,"Jun",1.6,4.0999999999999996,1.6,2.2999999999999998]
[null,null,null,null,null,null,null,null,null,null,"Jul",1.7,3.2,1.6,2]
[null,null,null,null,null,null,null,null,null,null,"Aug",1,5,0.9,1.5]
[null,null,null,null,null,null,null,null,null,null,"Sep",1.4,4.5,1.3,2.9]
[null,null,null,null,null,null,null,null,null,null,"Oct",0.9,2.4,0.8,1.4]
[null,null,null,null,null,null,null,null,null,null,"Nov",1.1000000000000001,2.9,1,1.9]
[null,null,null,null,null,null,null,null,null,null,"Dec",1.1000000000000001,3,1.1000000000000001,1.8]
[null,null,null,null,null,null,null,null,null,null,"Annual",{"$f":"AVERAGE(L22:L33)","v":1.5583333333333336},{"$f":"MAX(M22:M33)","v":5.0999999999999996},{"$f":"AVERAGE(N22:N33)","v":1.4636363636363638},{"$f":"MAX(O22:O33)","v":3.8}]
[]
[null,null,null,null,null,null,null,null,null,{"$f":"+A5","v":2025},"mg/Nm3","Monthly 1/2 hourly mean","Monthly 1/2 hourly maximum","Monthly daily mean","Monthly daily maximum"]
[null,null,null,null,null,null,null,null,null,"A3","Jan"]
[null,null,null,null,null,null,null,null,null,null,"Feb"]
[null,null,null,null,null,null,null,null,null,null,"Mar"]
[null,null,null,null,null,null,null,null,null,null,"Apr"]
[null,null,null,null,null,null,null,null,null,null,"May"]
[null,null,null,null,null,null,null,null,null,null,"Jun"]
[null,null,null,null,null,null,null,null,null,null,"Jul"]
[null,null,null,null,null,null,null,null,null,null,"Aug"]
[null,null,null,null,null,null,null,null,null,null,"Sep"]
[null,null,null,null,null,null,null,null,null,null,"Oct"]
[null,null,null,null,null,null,null,null,null,null,"Nov"]
["Comments :",null,null,null,null,null,null,null,null,null,"Dec"]
[null,null,null,null,null,null,null,null,null,null,"Annual",{"$f":"AVERAGE(L37:L48)","v":{"$error":"#DIV/0!"}},{"$f":"MAX(M37:M48)","v":0},{"$f":"AVERAGE(N37:N48)","v":{"$error":"#DIV/0!"}},{"$f":"MAX(O37:O48)","v":0}]
[]
[null,null,null,null,null,null,null,null,null,{"$f":"+A5","v":2025},"mg/Nm3","Monthly 1/2 hourly mean","Monthly 1/2 hourly maximum","Monthly daily mean","Monthly daily maximum"]
[null,null,null,null,null,null,null,null,null,"A4","Jan"]
[null,null,null,null,null,null,null,null,null,null,"Feb"]
[null,null,null,null,null,null,null,null,null,null,"Mar"]
[null,null,null,null,null,null,null,null,null,null,"Apr"]
[null,null,null,null,null,null,null,null,null,null,"May"]
[null,null,null,null,null,null,null,null,null,null,"Jun"]
[null,null,null,null,null,null,null,null,null,null,"Jul"]
[null,null,null,null,null,null,null,null,null,null,"Aug"]
[null,null,null,null,null,null,null,null,null,null,"Sep"]
[null,null,null,null,null,null,null,null,null,null,"Oct"]
[null,null,null,null,null,null,null,null,null,null,"Nov"]
[null,null,null,null,null,null,null,null,null,null,"Dec"]
[null,null,null,null,null,null,null,null,null,null,"Annual",{"$f":"AVERAGE(L52:L63)","v":{"$error":"#DIV/0!"}},{"$f":"MAX(M52:M63)","v":0},{"$f":"AVERAGE(N52:N63)","v":{"$error":"#DIV/0!"}},{"$f":"MAX(O52:O63)","v":0}]
[]
[null,null,null,null,null,null,null,null,null,{"$f":"+A5","v":2025},"mg/Nm3","Monthly 1/2 hourly mean","Monthly 1/2 hourly maximum","Monthly daily mean","Monthly daily maximum"]
[null,null,null,null,null,null,null,null,null,"A5","Jan"]
[null,null,null,null,null,null,null,null,null,null,"Feb"]
[null,null,null,null,null,null,null,null,null,null,"Mar"]
[null,null,null,null,null,null,null,null,null,null,"Apr"]
[null,null,null,null,null,null,null,null,null,null,"May"]
[null,null,null,null,null,null,null,null,null,null,"Jun"]
[null,null,null,null,null,null,null,null,null,null,"Jul"]
[null,null,null,null,null,null,null,null,null,null,"Aug"]
[null,null,null,null,null,null,null,null,null,null,"Sep"]
[null,null,null,null,null,null,null,null,null,null,"Oct"]
[null,null,null,null,null,null,null,null,null,null,"Nov"]
[null,null,null,null,null,null,null,null,null,null,"Dec"]
[null,null,null,null,null,null,null,null,null,null,"Annual",{"$f":"AVERAGE(L67:L78)","v":{"$error":"#DIV/0!"}},{"$f":"MAX(M67:M78)","v":0},{"$f":"AVERAGE(N67:N78)","v":{"$error":"#DIV/0!"}},{"$f":"MAX(O67:O78)","v":0}]

{"sheet":"Particulates","index":18,"n_rows":79,"n_cols":17,"rows_kept":79,"cut":false,"hidden":false,"merged":[[3,16,7,18],[9,16,11,18],[12,16,15,18],[66,9,78,9],[4,1,4,3],[4,4,4,6],[4,9,4,14],[6,9,18,9],[21,9,33,9],[36,9,48,9],[47,0,47,6],[48,0,51,6],[51,9,63,9],[18,4,18,6]]}
[{"$f":"+'Cover Page'!$B$29","v":"Annual Performance Report 2025"},null,null,null,{"$f":"+'Cover Page'!$B$33","v":"Enviropower Ltd"}]
[]
["Monitoring of Particulate matter emissions",null,null,"Whole Installation",null,null,"See  Notes in Cell Q3",null,null,{"$f":"+A3","v":"Monitoring of Particulate matter emissions"},null,null,null,"Per Combustion Line",null,null,"Notes:"]
[null,null,null,null,null,null,null,null,null,null,null,null,null,null,null,null,"User to add logic to complete Whole installation, Table A5:G18. From the data in Per Combustion Line, Table J6:O79, subject to No. of lines installed"]
[{"$f":"+'Cover Page'!C39","v":2025},"1/2 Hourly Reference Periods",null,null,"Daily Reference Periods"]
["mg/Nm3","1/2 hourly PM ELV","Monthly mean of half-hourly averages","Highest half- hourly average","Daily PM ELV","Monthly mean of  daily averages","Highest daily average",null,null,{"$f":"+A5","v":2025},"mg/Nm3","Monthly 1/2 hourly mean","Monthly 1/2 hourly maximum","Monthly daily mean","Monthly daily maximum"]
["Jan",30,{"$f":"AVERAGE(L7,L22)","v":0.30000000000000004},{"$f":"MAX(M7,M22)","v":3.2},5,{"$f":"AVERAGE(N7,N22)","v":0},{"$f":"MAX(O7,O22)","v":0.6},null,null,"A1","Jan",0.2,2.9,0,0.1]
["Feb",30,{"$f":"AVERAGE(L8,L23)","v":0},{"$f":"MAX(M8,M23)","v":0.4},5,{"$f":"AVERAGE(N8,N23)","v":0},{"$f":"MAX(O8,O23)","v":0.1},null,null,null,"Feb",0,0.4,0,0.1]
["Mar",30,0.05,0.5,5,0,0.3,null,null,null,"Mar",0.1,0.5,0,0.3,null,"Whole Installation table A5:G18:"]
["Apr",30,0,0.3,5,0,0.1,null,null,null,"Apr",0,0.3,0,0.1,null,"Mean: for 1/2 hourly and daily periods calculate mean of values across all operational combustion lines for the month"]
["May",30,0.05,3,5,0,1,null,null,null,"May",0,0,0,0]
["Jun",30,0.15,4.7,5,0.15,3,null,null,null,"Jun",0,0,0,0]
["Jul",30,0.15000000000000002,3.7,5,0.05,0.9,null,null,null,"Jul",0.2,3.7,0.1,0.9,null,"Maximum: for 1/2 hourly and daily periods use the highest value across all operational combustion lines for the month"]
["Aug",30,0.05,0.7,5,0,0.4,null,null,null,"Aug",0.1,0.7,0,0.4]
["Sep",30,0.05,0.8,5,0.05,0.6,null,null,null,"Sep",0.1,0.8,0.1,0.6]
["Oct",30,0.05,0.5,5,0,0.3,null,null,null,"Oct",0.1,0.5,0,0.3]
["Nov",30,0.05,0.6,5,0.05,0.4,null,null,null,"Nov",0.1,0.6,0.1,0.4]
["Dec",30,0.1,0.5,5,0.1,0.3,null,null,null,"Dec",0.2,0.5,0.2,0.3]
[null,null,null,null,null,null,null,null,null,null,"Annual",{"$f":"AVERAGE(L7:L18)","v":9.166666666666666E-2},{"$f":"MAX(M7:M18)","v":3.7},{"$f":"AVERAGE(N7:N18)","v":4.1666666666666664E-2},{"$f":"MAX(O7:O18)","v":0.9}]
[]
[null,null,null,null,null,null,null,null,null,{"$f":"+A5","v":2025},"mg/Nm3","Monthly 1/2 hourly mean","Monthly 1/2 hourly maximum","Monthly daily mean","Monthly daily maximum"]
[null,null,null,null,null,null,null,null,null,"A2","Jan",0.4,3.2,0,0.6]
[null,null,null,null,null,null,null,null,null,null,"Feb",0,0.1,0,0]
[null,null,null,null,null,null,null,null,null,null,"Mar",0,0.2,0,0.1]
[null,null,null,null,null,null,null,null,null,null,"Apr",0,0.3,0,0]
[null,null,null,null,null,null,null,null,null,null,"May",0.1,3,0,1]
[null,null,null,null,null,null,null,null,null,null,"Jun",0.3,4.7,0.3,3]
[null,null,null,null,null,null,null,null,null,null,"Jul",0.1,0.3,0,0.1]
[null,null,null,null,null,null,null,null,null,null,"Aug",0,0.2,0,0.1]
[null,null,null,null,null,null,null,null,null,null,"Sep",0,0.4,0,0.1]
[null,null,null,null,null,null,null,null,null,null,"Oct",0,0.3,0,0.1]
[null,null,null,null,null,null,null,null,null,null,"Nov",0,0.3,0,0.1]
[null,null,null,null,null,null,null,null,null,null,"Dec",0,0.2,0,0]
[null,null,null,null,null,null,null,null,null,null,"Annual",{"$f":"AVERAGE(L22:L33)","v":7.4999999999999997E-2},{"$f":"MAX(M22:M33)","v":4.7},{"$f":"AVERAGE(N22:N33)","v":2.4999999999999998E-2},{"$f":"MAX(O22:O33)","v":3}]
[]
[null,null,null,null,null,null,null,null,null,{"$f":"+A5","v":2025},"mg/Nm3","Monthly 1/2 hourly mean","Monthly 1/2 hourly maximum","Monthly daily mean","Monthly daily maximum"]
[null,null,null,null,null,null,null,null,null,"A3","Jan"]
[null,null,null,null,null,null,null,null,null,null,"Feb"]
[null,null,null,null,null,null,null,null,null,null,"Mar"]
[null,null,null,null,null,null,null,null,null,null,"Apr"]
[null,null,null,null,null,null,null,null,null,null,"May"]
[null,null,null,null,null,null,null,null,null,null,"Jun"]
[null,null,null,null,null,null,null,null,null,null,"Jul"]
[null,null,null,null,null,null,null,null,null,null,"Aug"]
[null,null,null,null,null,null,null,null,null,null,"Sep"]
[null,null,null,null,null,null,null,null,null,null,"Oct"]
[null,null,null,null,null,null,null,null,null,null,"Nov"]
["Comments :",null,null,null,null,null,null,null,null,null,"Dec"]
[null,null,null,null,null,null,null,null,null,null,"Annual",{"$f":"AVERAGE(L37:L48)","v":{"$error":"#DIV/0!"}},{"$f":"MAX(M37:M48)","v":0},{"$f":"AVERAGE(N37:N48)","v":{"$error":"#DIV/0!"}},{"$f":"MAX(O37:O48)","v":0}]
[]
[null,null,null,null,null,null,null,null,null,{"$f":"+A5","v":2025},"mg/Nm3","Monthly 1/2 hourly mean","Monthly 1/2 hourly maximum","Monthly daily mean","Monthly daily maximum"]
[null,null,null,null,null,null,null,null,null,"A4","Jan"]
[null,null,null,null,null,null,null,null,null,null,"Feb"]
[null,null,null,null,null,null,null,null,null,null,"Mar"]
[null,null,null,null,null,null,null,null,null,null,"Apr"]
[null,null,null,null,null,null,null,null,null,null,"May"]
[null,null,null,null,null,null,null,null,null,null,"Jun"]
[null,null,null,null,null,null,null,null,null,null,"Jul"]
[null,null,null,null,null,null,null,null,null,null,"Aug"]
[null,null,null,null,null,null,null,null,null,null,"Sep"]
[null,null,null,null,null,null,null,null,null,null,"Oct"]
[null,null,null,null,null,null,null,null,null,null,"Nov"]
[null,null,null,null,null,null,null,null,null,null,"Dec"]
[null,null,null,null,null,null,null,null,null,null,"Annual",{"$f":"AVERAGE(L52:L63)","v":{"$error":"#DIV/0!"}},{"$f":"MAX(M52:M63)","v":0},{"$f":"AVERAGE(N52:N63)","v":{"$error":"#DIV/0!"}},{"$f":"MAX(O52:O63)","v":0}]
[]
[null,null,null,null,null,null,null,null,null,{"$f":"+A5","v":2025},"mg/Nm3","Monthly 1/2 hourly mean","Monthly 1/2 hourly maximum","Monthly daily mean","Monthly daily maximum"]
[null,null,null,null,null,null,null,null,null,"A5","Jan"]
[null,null,null,null,null,null,null,null,null,null,"Feb"]
[null,null,null,null,null,null,null,null,null,null,"Mar"]
[null,null,null,null,null,null,null,null,null,null,"Apr"]
[null,null,null,null,null,null,null,null,null,null,"May"]
[null,null,null,null,null,null,null,null,null,null,"Jun"]
[null,null,null,null,null,null,null,null,null,null,"Jul"]
[null,null,null,null,null,null,null,null,null,null,"Aug"]
[null,null,null,null,null,null,null,null,null,null,"Sep"]
[null,null,null,null,null,null,null,null,null,null,"Oct"]
[null,null,null,null,null,null,null,null,null,null,"Nov"]
[null,null,null,null,null,null,null,null,null,null,"Dec"]
[null,null,null,null,null,null,null,null,null,null,"Annual",{"$f":"AVERAGE(L67:L78)","v":{"$error":"#DIV/0!"}},{"$f":"MAX(M67:M78)","v":0},{"$f":"AVERAGE(N67:N78)","v":{"$error":"#DIV/0!"}},{"$f":"MAX(O67:O78)","v":0}]

{"sheet":"CO 0.5 hourly","index":19,"n_rows":82,"n_cols":17,"rows_kept":82,"cut":false,"hidden":false,"merged":[[4,0,5,6],[6,16,10,18],[12,16,14,18],[15,16,18,18],[69,9,81,9],[7,1,7,3],[7,4,7,6],[7,9,7,14],[9,9,21,9],[24,9,36,9],[39,9,51,9],[50,0,50,6],[51,0,54,6],[54,9,66,9]]}
[{"$f":"+'Cover Page'!$B$29","v":"Annual Performance Report 2025"},null,null,null,{"$f":"+'Cover Page'!$B$33","v":"Enviropower Ltd"}]
[]
["Monitoring of Carbon Monoxide (half hourly)",null,null,"Whole Installation",null,null,"See  Notes in Cell Q3",null,null,{"$f":"+A3","v":"Monitoring of Carbon Monoxide (half hourly)"},null,null,null,"Per Combustion Line",null,null,"Notes:"]
[]
["If your plant has no short-term (half-hourly or 10-minute) CO ELVs, please complete this tab (stating \"none\" in the 1/2 hourly CO column) and ignore the CO 95% 10 min tab; otherwise, complete the relevant CO tab for your plant"]
[]
[null,null,null,null,null,null,null,null,null,null,null,null,null,null,null,null,"User to add logic to complete Whole installation, Table A5:G18. From the data in Per Combustion Line, Table J6:O79, subject to No. of lines installed"]
[{"$f":"+'Cover Page'!C39","v":2025},"1/2 Hourly Reference Periods",null,null,"Daily Reference Periods"]
["mg/Nm3","1/2 hourly CO ELV","Monthly mean of half-hourly averages","Highest half- hourly average","Daily CO ELV","Monthly mean of  daily averages","Highest daily average",null,null,{"$f":"+A8","v":2025},"mg/Nm3","Monthly 1/2 hourly mean","Monthly 1/2 hourly maximum","Monthly daily mean","Monthly daily maximum"]
["Jan","ELV or None",null,null,75,null,null,null,null,"A1","Jan"]
["Feb","ELV or None",null,null,{"$f":"+E10","v":75},null,null,null,null,null,"Feb"]
["Mar","ELV or None",null,null,{"$f":"+E11","v":75},null,null,null,null,null,"Mar",null,null,null,null,null,"Whole Installation table A5:G18:"]
["Apr","ELV or None",null,null,75,null,null,null,null,null,"Apr",null,null,null,null,null,"Mean: for 1/2 hourly and daily periods calculate mean of values across all operational combustion lines for the month"]
["May","ELV or None",null,null,75,null,null,null,null,null,"May"]
["Jun","ELV or None",null,null,75,null,null,null,null,null,"Jun"]
["Jul","ELV or None",null,null,75,null,null,null,null,null,"Jul",null,null,null,null,null,"Maximum: for 1/2 hourly and daily periods use the highest value across all operational combustion lines for the month"]
["Aug","ELV or None",null,null,75,null,null,null,null,null,"Aug"]
["Sep","ELV or None",null,null,75,null,null,null,null,null,"Sep"]
["Oct","ELV or None",null,null,75,null,null,null,null,null,"Oct"]
["Nov","ELV or None",null,null,75,null,null,null,null,null,"Nov"]
["Dec","ELV or None",null,null,75,null,null,null,null,null,"Dec"]
[null,null,null,null,null,null,null,null,null,null,"Annual",{"$f":"AVERAGE(L10:L21)","v":{"$error":"#DIV/0!"}},{"$f":"MAX(M10:M21)","v":0},{"$f":"AVERAGE(N10:N21)","v":{"$error":"#DIV/0!"}},{"$f":"MAX(O10:O21)","v":0}]
[]
[null,null,null,null,null,null,null,null,null,{"$f":"+A8","v":2025},"mg/Nm3","Monthly 1/2 hourly mean","Monthly 1/2 hourly maximum","Monthly daily mean","Monthly daily maximum"]
[null,null,null,null,null,null,null,null,null,"A2","Jan"]
[null,null,null,null,null,null,null,null,null,null,"Feb"]
[null,null,null,null,null,null,null,null,null,null,"Mar"]
[null,null,null,null,null,null,null,null,null,null,"Apr"]
[null,null,null,null,null,null,null,null,null,null,"May"]
[null,null,null,null,null,null,null,null,null,null,"Jun"]
[null,null,null,null,null,null,null,null,null,null,"Jul"]
[null,null,null,null,null,null,null,null,null,null,"Aug"]
[null,null,null,null,null,null,null,null,null,null,"Sep"]
[null,null,null,null,null,null,null,null,null,null,"Oct"]
[null,null,null,null,null,null,null,null,null,null,"Nov"]
[null,null,null,null,null,null,null,null,null,null,"Dec"]
[null,null,null,null,null,null,null,null,null,null,"Annual",{"$f":"AVERAGE(L25:L36)","v":{"$error":"#DIV/0!"}},{"$f":"MAX(M25:M36)","v":0},{"$f":"AVERAGE(N25:N36)","v":{"$error":"#DIV/0!"}},{"$f":"MAX(O25:O36)","v":0}]
[]
[null,null,null,null,null,null,null,null,null,{"$f":"+A8","v":2025},"mg/Nm3","Monthly 1/2 hourly mean","Monthly 1/2 hourly maximum","Monthly daily mean","Monthly daily maximum"]
[null,null,null,null,null,null,null,null,null,"A3","Jan"]
[null,null,null,null,null,null,null,null,null,null,"Feb"]
[null,null,null,null,null,null,null,null,null,null,"Mar"]
[null,null,null,null,null,null,null,null,null,null,"Apr"]
[null,null,null,null,null,null,null,null,null,null,"May"]
[null,null,null,null,null,null,null,null,null,null,"Jun"]
[null,null,null,null,null,null,null,null,null,null,"Jul"]
[null,null,null,null,null,null,null,null,null,null,"Aug"]
[null,null,null,null,null,null,null,null,null,null,"Sep"]
[null,null,null,null,null,null,null,null,null,null,"Oct"]
[null,null,null,null,null,null,null,null,null,null,"Nov"]
["Comments :",null,null,null,null,null,null,null,null,null,"Dec"]
[null,null,null,null,null,null,null,null,null,null,"Annual",{"$f":"AVERAGE(L40:L51)","v":{"$error":"#DIV/0!"}},{"$f":"MAX(M40:M51)","v":0},{"$f":"AVERAGE(N40:N51)","v":{"$error":"#DIV/0!"}},{"$f":"MAX(O40:O51)","v":0}]
[]
[null,null,null,null,null,null,null,null,null,{"$f":"+A8","v":2025},"mg/Nm3","Monthly 1/2 hourly mean","Monthly 1/2 hourly maximum","Monthly daily mean","Monthly daily maximum"]
[null,null,null,null,null,null,null,null,null,"A4","Jan"]
[null,null,null,null,null,null,null,null,null,null,"Feb"]
[null,null,null,null,null,null,null,null,null,null,"Mar"]
[null,null,null,null,null,null,null,null,null,null,"Apr"]
[null,null,null,null,null,null,null,null,null,null,"May"]
[null,null,null,null,null,null,null,null,null,null,"Jun"]
[null,null,null,null,null,null,null,null,null,null,"Jul"]
[null,null,null,null,null,null,null,null,null,null,"Aug"]
[null,null,null,null,null,null,null,null,null,null,"Sep"]
[null,null,null,null,null,null,null,null,null,null,"Oct"]
[null,null,null,null,null,null,null,null,null,null,"Nov"]
[null,null,null,null,null,null,null,null,null,null,"Dec"]
[null,null,null,null,null,null,null,null,null,null,"Annual",{"$f":"AVERAGE(L55:L66)","v":{"$error":"#DIV/0!"}},{"$f":"MAX(M55:M66)","v":0},{"$f":"AVERAGE(N55:N66)","v":{"$error":"#DIV/0!"}},{"$f":"MAX(O55:O66)","v":0}]
[]
[null,null,null,null,null,null,null,null,null,{"$f":"+A9","v":"mg/Nm3"},"mg/Nm3","Monthly 1/2 hourly mean","Monthly 1/2 hourly maximum","Monthly daily mean","Monthly daily maximum"]
[null,null,null,null,null,null,null,null,null,"A5","Jan"]
[null,null,null,null,null,null,null,null,null,null,"Feb"]
[null,null,null,null,null,null,null,null,null,null,"Mar"]
[null,null,null,null,null,null,null,null,null,null,"Apr"]
[null,null,null,null,null,null,null,null,null,null,"May"]
[null,null,null,null,null,null,null,null,null,null,"Jun"]
[null,null,null,null,null,null,null,null,null,null,"Jul"]
[null,null,null,null,null,null,null,null,null,null,"Aug"]
[null,null,null,null,null,null,null,null,null,null,"Sep"]
[null,null,null,null,null,null,null,null,null,null,"Oct"]
[null,null,null,null,null,null,null,null,null,null,"Nov"]
[null,null,null,null,null,null,null,null,null,null,"Dec"]
[null,null,null,null,null,null,null,null,null,null,"Annual",{"$f":"AVERAGE(L70:L81)","v":{"$error":"#DIV/0!"}},{"$f":"MAX(M70:M81)","v":0},{"$f":"AVERAGE(N70:N81)","v":{"$error":"#DIV/0!"}},{"$f":"MAX(O70:O81)","v":0}]

{"sheet":"CO 95% 10 min","index":20,"n_rows":82,"n_cols":19,"rows_kept":82,"cut":false,"hidden":false,"merged":[[4,0,5,7],[6,18,10,20],[12,18,14,20],[15,18,18,20],[69,10,81,10],[7,1,7,4],[7,5,7,7],[7,10,7,16],[9,10,21,10],[24,10,36,10],[39,10,51,10],[50,0,50,7],[51,0,54,7],[54,10,66,10]]}
[{"$f":"+'Cover Page'!$B$29","v":"Annual Performance Report 2025"},null,null,null,{"$f":"+'Cover Page'!$B$33","v":"Enviropower Ltd"}]
[]
["Monitoring of Carbon Monoxide (10-minute avg)",null,null,null,"Whole Installation",null,null,"See  Notes in Cell S3",null,{"$f":"+A3","v":"Monitoring of Carbon Monoxide (10-minute avg)"},null,null,null,null,"Per Combustion Line",null,"Notes:",null,"Notes:"]
[]
["If your plant has no short-term (half-hourly or 10-minute) CO ELVs, please ignore this tab and instead complete the CO 0.5 hourly tab; otherwise, please complete the relevant CO tab for your plant"]
[]
[null,null,null,null,null,null,null,null,null,null,null,null,null,null,null,null,null,null,"User to add logic to complete Whole installation, Table A5:H18. From the data in Per Combustion Line, Table K6:Q79, subject to No. of lines installed"]
[{"$f":"+'Cover Page'!C39","v":2025},"10-minute Reference Periods",null,null,null,"Daily Reference Periods"]
["mg/Nm3","95%ile 10-min avg CO ELV","Highest daily 95%ile 10-min average","Monthly mean of 10-min averages","Highest 10-min average","Daily CO ELV","Monthly mean of  daily averages","Highest daily average",null,null,{"$f":"+A8","v":2025},"mg/Nm3","95%ile 10-min avg maximum","Monthly CO 10-min avg mean","10-min avg maximum","Monthly daily mean","Monthly daily maximum"]
["Jan",150,{"$f":"MAX(M10,M25)","v":6.5},{"$f":"AVERAGE(N10,N25)","v":4.1999999999999993},{"$f":"MAX(O10,O25)","v":156.30000000000001},50,{"$f":"AVERAGE(P10,P25)","v":3.9},{"$f":"MAX(Q10,Q25)","v":4.8},null,null,"A1","Jan",6.4,4.3,156.30000000000001,4,4.7]
["Feb",150,{"$f":"MAX(M11,M26)","v":4.7},{"$f":"AVERAGE(N11,N26)","v":3.25},{"$f":"MAX(O11,O26)","v":122.7},{"$f":"+F10","v":50},{"$f":"AVERAGE(P11,P26)","v":2.5499999999999998},{"$f":"MAX(Q11,Q26)","v":3.7},null,null,null,"Feb",4.5999999999999996,3.6,5.2,2.5,3.5]
["Mar",150,8.3000000000000007,3.75,9.6999999999999993,{"$f":"+F11","v":50},3.7,5.6,null,null,null,"Mar",8.3000000000000007,4,9.6999999999999993,4,5.6,null,"Whole Installation table A5:H18:"]
["Apr",150,46.2,4.4499999999999993,429.3,50,4.3,16.3,null,null,null,"Apr",46.2,5.6,429.3,5.5,16.3,null,"Mean: for 10-min and daily periods use average of all operational combustion lines."]
["May",150,5.7,1.7,7.5,50,1.65,4.5999999999999996,null,null,null,"May",0,0,0,0,0]
["Jun",150,6.1,1.9,19.600000000000001,50,1.9,4.8,null,null,null,"Jun",0,0,0,0,0]
["Jul",150,5.2,3.35,8.1,50,3.2,4.2,null,null,null,"Jul",4.3,3,6.6,2.8,3.5,null,"Maximum: for 10-min and daily periods use the highest of all operational combustion lines in any month."]
["Aug",150,6.1,3.55,165.2,50,3.5,4.5999999999999996,null,null,null,"Aug",5.5,3.5,16.399999999999999,3.4,4.2]
["Sep",150,6.1,3.35,26.5,50,3.25,4.3,null,null,null,"Sep",6.1,3.2,26.5,3.1,4.2]
["Oct",150,4.5999999999999996,2.4,5.2,50,2.3499999999999996,3.2,null,null,null,"Oct",4.5999999999999996,2.4,5,2.2999999999999998,3.1]
["Nov",150,4.8,2.25,5.4,50,2.15,3.4,null,null,null,"Nov",4.0999999999999996,1.9,4.4000000000000004,1.8,2.6]
["Dec",150,6.3,3.15,24.1,50,3.0999999999999996,4.5999999999999996,null,null,null,"Dec",5.5,2.8,24.1,2.8,4.2]
[null,null,null,null,null,null,null,null,null,null,null,"Annual",{"$f":"AVERAGE(M10:M21)","v":7.966666666666665},{"$f":"AVERAGE(N10:N21)","v":2.8583333333333329},{"$f":"MAX(O10:O21)","v":429.3},{"$f":"AVERAGE(P10:P21)","v":2.6833333333333336},{"$f":"MAX(Q10:Q21)","v":16.3}]
[]
[null,null,null,null,null,null,null,null,null,null,{"$f":"+A8","v":2025},"mg/Nm3","95%ile 10-min avg maximum","Monthly CO 10-min avg mean","10-min avg maximum","Monthly daily mean","Monthly daily maximum"]
[null,null,null,null,null,null,null,null,null,null,"A2","Jan",6.5,4.0999999999999996,7.2,3.8,4.8]
[null,null,null,null,null,null,null,null,null,null,null,"Feb",4.7,2.9,122.7,2.6,3.7]
[null,null,null,null,null,null,null,null,null,null,null,"Mar",6.9,3.5,9.5,3.4,5]
[null,null,null,null,null,null,null,null,null,null,null,"Apr",4.5999999999999996,3.3,8.4,3.1,3.7]
[null,null,null,null,null,null,null,null,null,null,null,"May",5.7,3.4,7.5,3.3,4.5999999999999996]
[null,null,null,null,null,null,null,null,null,null,null,"Jun",6.1,3.8,19.600000000000001,3.8,4.8]
[null,null,null,null,null,null,null,null,null,null,null,"Jul",5.2,3.7,8.1,3.6,4.2]
[null,null,null,null,null,null,null,null,null,null,null,"Aug",6.1,3.6,165.2,3.6,4.5999999999999996]
[null,null,null,null,null,null,null,null,null,null,null,"Sep",5.7,3.5,7.6,3.4,4.3]
[null,null,null,null,null,null,null,null,null,null,null,"Oct",4.4000000000000004,2.4,5.2,2.4,3.2]
[null,null,null,null,null,null,null,null,null,null,null,"Nov",4.8,2.6,5.4,2.5,3.4]
[null,null,null,null,null,null,null,null,null,null,null,"Dec",6.3,3.5,7,3.4,4.5999999999999996]
[null,null,null,null,null,null,null,null,null,null,null,"Annual",{"$f":"AVERAGE(M25:M36)","v":5.583333333333333},{"$f":"AVERAGE(N25:N36)","v":3.3583333333333338},{"$f":"MAX(O25:O36)","v":165.2},{"$f":"AVERAGE(P25:P36)","v":3.2416666666666667},{"$f":"MAX(Q25:Q36)","v":5}]
[]
[null,null,null,null,null,null,null,null,null,null,{"$f":"+A8","v":2025},"mg/Nm3","95%ile 10-min avg maximum","Monthly CO 10-min avg mean","10-min avg maximum","Monthly daily mean","Monthly daily maximum"]
[null,null,null,null,null,null,null,null,null,null,"A3","Jan"]
[null,null,null,null,null,null,null,null,null,null,null,"Feb"]
[null,null,null,null,null,null,null,null,null,null,null,"Mar"]
[null,null,null,null,null,null,null,null,null,null,null,"Apr"]
[null,null,null,null,null,null,null,null,null,null,null,"May"]
[null,null,null,null,null,null,null,null,null,null,null,"Jun"]
[null,null,null,null,null,null,null,null,null,null,null,"Jul"]
[null,null,null,null,null,null,null,null,null,null,null,"Aug"]
[null,null,null,null,null,null,null,null,null,null,null,"Sep"]
[null,null,null,null,null,null,null,null,null,null,null,"Oct"]
[null,null,null,null,null,null,null,null,null,null,null,"Nov"]
["Comments :",null,null,null,null,null,null,null,null,null,null,"Dec"]
["Environment Agency explanatory note: The 10-minute average ELV is based on the “95th percentile”. In this case this means that 95% of the 10 minute averages in the relevant 24-hour period (i.e. 137) must be below 150 mg/Nm3, and 5% (i.e. 7) are allowed to be any value above 150 mg/Nm3. Whilst we expect operators to minimise CO emissions at all times, it is perfectly acceptable for the value of the maximum 10-minute average to be above 150 mg/Nm3, provided the 95th percentile ELV has been met for that period. ",null,null,null,null,null,null,null,null,null,null,"Annual",{"$f":"AVERAGE(M40:M51)","v":{"$error":"#DIV/0!"}},null,{"$f":"MAX(O40:O51)","v":0},{"$f":"AVERAGE(P40:P51)","v":{"$error":"#DIV/0!"}},{"$f":"MAX(Q40:Q51)","v":0}]
[]
[null,null,null,null,null,null,null,null,null,null,{"$f":"+A8","v":2025},"mg/Nm3","95%ile 10-min avg maximum","Monthly CO 10-min avg mean","10-min avg maximum","Monthly daily mean","Monthly daily maximum"]
[null,null,null,null,null,null,null,null,null,null,"A4","Jan"]
[null,null,null,null,null,null,null,null,null,null,null,"Feb"]
[null,null,null,null,null,null,null,null,null,null,null,"Mar"]
[null,null,null,null,null,null,null,null,null,null,null,"Apr"]
[null,null,null,null,null,null,null,null,null,null,null,"May"]
[null,null,null,null,null,null,null,null,null,null,null,"Jun"]
[null,null,null,null,null,null,null,null,null,null,null,"Jul"]
[null,null,null,null,null,null,null,null,null,null,null,"Aug"]
[null,null,null,null,null,null,null,null,null,null,null,"Sep"]
[null,null,null,null,null,null,null,null,null,null,null,"Oct"]
[null,null,null,null,null,null,null,null,null,null,null,"Nov"]
[null,null,null,null,null,null,null,null,null,null,null,"Dec"]
[null,null,null,null,null,null,null,null,null,null,null,"Annual",{"$f":"AVERAGE(M55:M66)","v":{"$error":"#DIV/0!"}},null,{"$f":"MAX(O55:O66)","v":0},{"$f":"AVERAGE(P55:P66)","v":{"$error":"#DIV/0!"}},{"$f":"MAX(Q55:Q66)","v":0}]
[]
[null,null,null,null,null,null,null,null,null,null,{"$f":"+A8","v":2025},"mg/Nm3","95%ile 10-min avg maximum","Monthly CO 10-min avg mean","10-min avg maximum","Monthly daily mean","Monthly daily maximum"]
[null,null,null,null,null,null,null,null,null,null,"A5","Jan"]
[null,null,null,null,null,null,null,null,null,null,null,"Feb"]
[null,null,null,null,null,null,null,null,null,null,null,"Mar"]
[null,null,null,null,null,null,null,null,null,null,null,"Apr"]
[null,null,null,null,null,null,null,null,null,null,null,"May"]
[null,null,null,null,null,null,null,null,null,null,null,"Jun"]
[null,null,null,null,null,null,null,null,null,null,null,"Jul"]
[null,null,null,null,null,null,null,null,null,null,null,"Aug"]
[null,null,null,null,null,null,null,null,null,null,null,"Sep"]
[null,null,null,null,null,null,null,null,null,null,null,"Oct"]
[null,null,null,null,null,null,null,null,null,null,null,"Nov"]
[null,null,null,null,null,null,null,null,null,null,null,"Dec"]
[null,null,null,null,null,null,null,null,null,null,null,"Annual",{"$f":"AVERAGE(M70:M81)","v":{"$error":"#DIV/0!"}},null,{"$f":"MAX(O70:O81)","v":0},{"$f":"AVERAGE(P70:P81)","v":{"$error":"#DIV/0!"}},{"$f":"MAX(Q70:Q81)","v":0}]

{"sheet":"NH3","index":21,"n_rows":79,"n_cols":17,"rows_kept":79,"cut":false,"hidden":false,"merged":[[3,16,7,18],[9,16,11,18],[12,16,15,18],[66,9,78,9],[4,1,4,3],[4,4,4,6],[4,9,4,14],[6,9,18,9],[21,9,33,9],[36,9,48,9],[47,0,47,6],[48,0,51,6],[51,9,63,9],[18,4,18,6]]}
[{"$f":"+'Cover Page'!$B$29","v":"Annual Performance Report 2025"},null,null,null,{"$f":"+'Cover Page'!$B$33","v":"Enviropower Ltd"}]
[]
["Monitoring of Ammnonia emissions ",null,null,"Whole Installation",null,null,"See  Notes in Cell Q3",null,null,{"$f":"+A3","v":"Monitoring of Ammnonia emissions "},null,null,null,"Per Combustion Line",null,null,"Notes:"]
[null,null,null,null,null,null,null,null,null,null,null,null,null,null,null,null,"User to add logic to complete Whole installation, Table A5:G18. From the data in Per Combustion Line, Table J6:O79, subject to No. of lines installed"]
[{"$f":"+'Cover Page'!C39","v":2025},"1/2 Hourly Reference Periods",null,null,"Daily Reference Periods"]
["mg/Nm3","1/2 hourly NH3 ELV","Monthly mean of half-hourly averages","Highest half- hourly average","Daily NH3 ELV","Monthly mean of  daily averages","Highest daily average",null,null,{"$f":"+A5","v":2025},"mg/Nm3","Monthly 1/2 hourly mean","Monthly 1/2 hourly maximum","Monthly daily mean","Monthly daily maximum"]
["Jan","None",{"$f":"AVERAGE(L7,L22)","v":0.05},{"$f":"MAX(M7,M22)","v":0.7},15,{"$f":"AVERAGE(N7,N22)","v":0},{"$f":"MAX(O7,O22)","v":0.2},null,null,"A1","Jan",0.1,0.7,0,0.2]
["Feb",{"$f":"+B7","v":"None"},{"$f":"AVERAGE(L8,L23)","v":0.15},{"$f":"MAX(M8,M23)","v":0.8},15,{"$f":"AVERAGE(N8,N23)","v":0},{"$f":"MAX(O8,O23)","v":0.3},null,null,null,"Feb",0.3,0.8,0,0.3]
["Mar",{"$f":"+B8","v":"None"},0.1,2.5,15,0.05,0.3,null,null,null,"Mar",0.2,2.5,0.1,0.3,null,"Whole Installation table A5:G18:"]
["Apr","None",0.1,5.4,15,0.05,0.2,null,null,null,"Apr",0.1,0.9,0.1,0.2,null,"Mean: for 1/2 hourly and daily periods calculate mean of values across all operational combustion lines for the month"]
["May","None",0.05,1.7,15,0,0.2,null,null,null,"May",0,0,0,0]
["Jun","None",0.05,3.9,15,0.05,0.2,null,null,null,"Jun",0,0,0,0]
["Jul","None",0.1,1.9,15,0,0.3,null,null,null,"Jul",0.1,1.9,0,0.3,null,"Maximum: for 1/2 hourly and daily periods use the highest value across all operational combustion lines for the month"]
["Aug","None",0.15000000000000002,2,15,0.1,0.4,null,null,null,"Aug",0.2,2,0.1,0.4]
["Sep","None",0.1,1.3,15,0.1,0.3,null,null,null,"Sep",0.1,1.3,0.1,0.3]
["Oct","None",0.1,2.7,15,0.05,0.3,null,null,null,"Oct",0.1,2.4,0.1,0.3]
["Nov","None",0.05,1.7,15,0.05,0.3,null,null,null,"Nov",0.1,1.4,0.1,0.3]
["Dec","None",0.1,2.2000000000000002,15,0.05,0.3,null,null,null,"Dec",0.1,1.8,0.1,0.3]
[null,null,null,null,null,null,null,null,null,null,"Annual",{"$f":"AVERAGE(L7:L18)","v":0.1166666666666667},{"$f":"MAX(M7:M18)","v":2.5},{"$f":"AVERAGE(N7:N18)","v":5.8333333333333327E-2},{"$f":"MAX(O7:O18)","v":0.4}]
[]
[null,null,null,null,null,null,null,null,null,{"$f":"+A5","v":2025},"mg/Nm3","Monthly 1/2 hourly mean","Monthly 1/2 hourly maximum","Monthly daily mean","Monthly daily maximum"]
[null,null,null,null,null,null,null,null,null,"A2","Jan",0,0.2,0,0.1]
[null,null,null,null,null,null,null,null,null,null,"Feb",0,0.4,0,0.1]
[null,null,null,null,null,null,null,null,null,null,"Mar",0,1.3,0,0.1]
[null,null,null,null,null,null,null,null,null,null,"Apr",0.1,5.4,0,0.1]
[null,null,null,null,null,null,null,null,null,null,"May",0.1,1.7,0,0.2]
[null,null,null,null,null,null,null,null,null,null,"Jun",0.1,3.9,0.1,0.2]
[null,null,null,null,null,null,null,null,null,null,"Jul",0.1,1.1000000000000001,0,0.1]
[null,null,null,null,null,null,null,null,null,null,"Aug",0.1,1.6,0.1,0.2]
[null,null,null,null,null,null,null,null,null,null,"Sep",0.1,0.8,0.1,0.2]
[null,null,null,null,null,null,null,null,null,null,"Oct",0.1,2.7,0,0.2]
[null,null,null,null,null,null,null,null,null,null,"Nov",0,1.7,0,0.1]
[null,null,null,null,null,null,null,null,null,null,"Dec",0.1,2.2000000000000002,0,0.2]
[null,null,null,null,null,null,null,null,null,null,"Annual",{"$f":"AVERAGE(L22:L33)","v":6.6666666666666666E-2},{"$f":"MAX(M22:M33)","v":5.4},{"$f":"AVERAGE(N22:N33)","v":2.5000000000000005E-2},{"$f":"MAX(O22:O33)","v":0.2}]
[]
[null,null,null,null,null,null,null,null,null,{"$f":"+A5","v":2025},"mg/Nm3","Monthly 1/2 hourly mean","Monthly 1/2 hourly maximum","Monthly daily mean","Monthly daily maximum"]
[null,null,null,null,null,null,null,null,null,"A3","Jan"]
[null,null,null,null,null,null,null,null,null,null,"Feb"]
[null,null,null,null,null,null,null,null,null,null,"Mar"]
[null,null,null,null,null,null,null,null,null,null,"Apr"]
[null,null,null,null,null,null,null,null,null,null,"May"]
[null,null,null,null,null,null,null,null,null,null,"Jun"]
[null,null,null,null,null,null,null,null,null,null,"Jul"]
[null,null,null,null,null,null,null,null,null,null,"Aug"]
[null,null,null,null,null,null,null,null,null,null,"Sep"]
[null,null,null,null,null,null,null,null,null,null,"Oct"]
[null,null,null,null,null,null,null,null,null,null,"Nov"]
["Comments :",null,null,null,null,null,null,null,null,null,"Dec"]
["An indicated ELV value of zero in the table above means that no ammonia limit is/was set in the permit.  ",null,null,null,null,null,null,null,null,null,"Annual",{"$f":"AVERAGE(L37:L48)","v":{"$error":"#DIV/0!"}},{"$f":"MAX(M37:M48)","v":0},{"$f":"AVERAGE(N37:N48)","v":{"$error":"#DIV/0!"}},{"$f":"MAX(O37:O48)","v":0}]
[]
[null,null,null,null,null,null,null,null,null,{"$f":"+A5","v":2025},"mg/Nm3","Monthly 1/2 hourly mean","Monthly 1/2 hourly maximum","Monthly daily mean","Monthly daily maximum"]
[null,null,null,null,null,null,null,null,null,"A4","Jan"]
[null,null,null,null,null,null,null,null,null,null,"Feb"]
[null,null,null,null,null,null,null,null,null,null,"Mar"]
[null,null,null,null,null,null,null,null,null,null,"Apr"]
[null,null,null,null,null,null,null,null,null,null,"May"]
[null,null,null,null,null,null,null,null,null,null,"Jun"]
[null,null,null,null,null,null,null,null,null,null,"Jul"]
[null,null,null,null,null,null,null,null,null,null,"Aug"]
[null,null,null,null,null,null,null,null,null,null,"Sep"]
[null,null,null,null,null,null,null,null,null,null,"Oct"]
[null,null,null,null,null,null,null,null,null,null,"Nov"]
[null,null,null,null,null,null,null,null,null,null,"Dec"]
[null,null,null,null,null,null,null,null,null,null,"Annual",{"$f":"AVERAGE(L52:L63)","v":{"$error":"#DIV/0!"}},{"$f":"MAX(M52:M63)","v":0},{"$f":"AVERAGE(N52:N63)","v":{"$error":"#DIV/0!"}},{"$f":"MAX(O52:O63)","v":0}]
[]
[null,null,null,null,null,null,null,null,null,{"$f":"+A5","v":2025},"mg/Nm3","Monthly 1/2 hourly mean","Monthly 1/2 hourly maximum","Monthly daily mean","Monthly daily maximum"]
[null,null,null,null,null,null,null,null,null,"A5","Jan"]
[null,null,null,null,null,null,null,null,null,null,"Feb"]
[null,null,null,null,null,null,null,null,null,null,"Mar"]
[null,null,null,null,null,null,null,null,null,null,"Apr"]
[null,null,null,null,null,null,null,null,null,null,"May"]
[null,null,null,null,null,null,null,null,null,null,"Jun"]
[null,null,null,null,null,null,null,null,null,null,"Jul"]
[null,null,null,null,null,null,null,null,null,null,"Aug"]
[null,null,null,null,null,null,null,null,null,null,"Sep"]
[null,null,null,null,null,null,null,null,null,null,"Oct"]
[null,null,null,null,null,null,null,null,null,null,"Nov"]
[null,null,null,null,null,null,null,null,null,null,"Dec"]
[null,null,null,null,null,null,null,null,null,null,"Annual",{"$f":"AVERAGE(L67:L78)","v":{"$error":"#DIV/0!"}},{"$f":"MAX(M67:M78)","v":0},{"$f":"AVERAGE(N67:N78)","v":{"$error":"#DIV/0!"}},{"$f":"MAX(O67:O78)","v":0}]

{"sheet":"Template changes log","index":22,"n_rows":19,"n_cols":3,"rows_kept":19,"cut":false,"hidden":false,"merged":[]}
["Log of changes to template (Environment Agency use only)"]
[]
["Date","Description of change","New version number and date"]
["2024-09-23","Air (periodic) tab: corrected symbol for Thallium to Tl"]
["2024-09-23","Air (periodic) tab: removed last year's references to different emission limit values applying from 03/12/23 and updated all relevant ELVs"]
["2024-09-23","Tabs for continuously monitored pollutants (HCl, SO2 etc.): changed terminology in table headings to improve clarity"]
["2024-09-23","Tabs for continuously monitored pollutants (HCl, SO2 etc.): removed last year's references to different emission limit values applying from 03/12/23 and updated all relevant ELVs"]
["2024-09-23","Perf 1 tab: updated formula for water usage to report m3 rather than litres and corrected error with formula copying operator name"]
["2024-09-23","CO2 N2O tab: various changes made to notes to reflect the fact that most plants should now have calibrated CEMS and flow meters + some have C14 samplers and more up to date industry data","Version 24b (for co-incinerators) - 23/09/24"]
["2024-11-08","CO2 N2O tab: Changed the N2O CO2 equivalence factor from 298 to 265 in line with recently updated government greenhouse gas figures: https://www.gov.uk/government/publications/greenhouse-gas-reporting-conversion-factors-2024"]
["2024-11-08","CO2 N2O tab: Added an additional requirement for municipal EfW plants to state the yearly average biogenic percentage of the waste by mass, and reference to a document which sets out a methodology for calculating NCV of waste from the results of C14 sampling."]
["2024-11-08","Permit Compliance tab: Two additional columns added + explanatory notes to the table entitled \"Summary of non-compliances under the permit\" to allow CCS scores to be stated where relevant. "]
["2024-11-08","Residue Quality tab: Note added explaining application of TOC and LOI limits and asking operators to report both metrics where measured. ","Version 24.1b (for co-incinerators) - 08/11/24"]
["2024-11-27","Operational Summary tab: table added on start-ups and shut-downs","Version 24.2b (for co-incinerators) -27/11/24"]
["2025-11-27","Cover Page: Print as PDF and Print Report and pdf buttons deleted and blank columns removed; contents page deleted","Version 25.1b (for co-incinerators) - 27/11/25"]
["2025-11-27","Residue Quality tab renamed to \"Residues\", and Summary of residue handling table moved from Operational Summary tab to Residues tab."]
["2025-11-27","Various changes made to the Operational Data tab including\n•\tReformatting of the rows under the Operational data heading (Rows 3-8) to make it clearer what information is required. \n•\tAmendment of the rows under the Energy Usage / Export heading (Rows 26-32) to calculate an “indicative parasitic load” (now excluding energy imported)\n•\tAmendment of the unit for gas usage from cubic feet to cubic metres (Row 50) \n•\tSome amendments to the first 2 notes and other minor edits\n•\tDeleted \"Overall Availability, mean avg. of all lines, hrs\" row"]
["2025-11-27","Operational Summary tab: Note added requiring all emergency shut-downs be listed, irrespective of whether or not they were reportable. "]
["2025-11-27","CO2 N2O tab: Note added to ask operators to ensure that relevant data reported here matches that which will be submitted under the Pollution Inventory"]